Workbook

Sheet Data (hidden)
A1: EXCHANGE%3DNSE
A2: MARKET_OPEN_MINUTE=555
A3: MARKET_CLOSE_MINUTE=930
A4: INTERVAL=900
A5: COLUMNS=DATE | B5: CLOSE | C5: HIGH | D5: LOW | E5: OPEN | F5: VOLUME
A6: DATA=
A7: TIMEZONE_OFFSET=330
A8: a1520308800 | B8: 265.2 | C8: 265.85 | D8: 264.6 | E8: 265.45 | F8: 1207596 | G8: 2018-03-06T09:30:00
A9: 1 | B9: 264.6 | C9: 265.5 | D9: 264.25 | E9: 265.3 | F9: 1053474 | G9: =(A9*900+1520328600)/86400+25569 -> 2018-03-06T09:45:00
A10: 2 | B10: 263.4 | C10: 264.7 | D10: 263.3 | E10: 264.6 | F10: 1108833 | G10: =(A10*900+1520328600)/86400+25569 -> 2018-03-06T10:00:00
A11: 3 | B11: 262.3 | C11: 263.55 | D11: 261.7 | E11: 263.3 | F11: 1327363 | G11: =(A11*900+1520328600)/86400+25569 -> 2018-03-06T10:15:00
A12: 4 | B12: 262.25 | C12: 263.1 | D12: 261.8 | E12: 262.35 | F12: 1265221 | G12: =(A12*900+1520328600)/86400+25569 -> 2018-03-06T10:30:00
A13: 5 | B13: 262.95 | C13: 263 | D13: 262.05 | E13: 262.25 | F13: 433845 | G13: =(A13*900+1520328600)/86400+25569 -> 2018-03-06T10:45:00
A14: 6 | B14: 262.35 | C14: 263.05 | D14: 262.2 | E14: 262.95 | F14: 312341 | G14: =(A14*900+1520328600)/86400+25569 -> 2018-03-06T11:00:00
A15: 7 | B15: 262.25 | C15: 262.9 | D15: 261.9 | E15: 262.35 | F15: 500861 | G15: =(A15*900+1520328600)/86400+25569 -> 2018-03-06T11:15:00
A16: 8 | B16: 261.65 | C16: 262.5 | D16: 261.05 | E16: 262.2 | F16: 1303629 | G16: =(A16*900+1520328600)/86400+25569 -> 2018-03-06T11:30:00
A17: 9 | B17: 261.4 | C17: 261.8 | D17: 260.7 | E17: 261.55 | F17: 684007 | G17: =(A17*900+1520328600)/86400+25569 -> 2018-03-06T11:45:00
A18: 10 | B18: 261.3 | C18: 261.75 | D18: 261.1 | E18: 261.3 | F18: 456185 | G18: =(A18*900+1520328600)/86400+25569 -> 2018-03-06T12:00:00
A19: 11 | B19: 262.25 | C19: 262.6 | D19: 261.1 | E19: 261.3 | F19: 684956 | G19: =(A19*900+1520328600)/86400+25569 -> 2018-03-06T12:15:00
A20: 12 | B20: 262.55 | C20: 263 | D20: 262.15 | E20: 262.3 | F20: 469033 | G20: =(A20*900+1520328600)/86400+25569 -> 2018-03-06T12:30:00
A21: 13 | B21: 262.9 | C21: 263.25 | D21: 262.55 | E21: 262.6 | F21: 495841 | G21: =(A21*900+1520328600)/86400+25569 -> 2018-03-06T12:45:00
A22: 14 | B22: 262.4 | C22: 262.9 | D22: 261.85 | E22: 262.9 | F22: 412879 | G22: =(A22*900+1520328600)/86400+25569 -> 2018-03-06T13:00:00
A23: 15 | B23: 262.65 | C23: 263 | D23: 262.2 | E23: 262.4 | F23: 302983 | G23: =(A23*900+1520328600)/86400+25569 -> 2018-03-06T13:15:00
A24: 16 | B24: 263.2 | C24: 263.5 | D24: 262.7 | E24: 262.85 | F24: 447493 | G24: =(A24*900+1520328600)/86400+25569 -> 2018-03-06T13:30:00
A25: 17 | B25: 262.95 | C25: 263.6 | D25: 262.85 | E25: 263.2 | F25: 438502 | G25: =(A25*900+1520328600)/86400+25569 -> 2018-03-06T13:45:00
A26: 18 | B26: 263.3 | C26: 263.5 | D26: 262.85 | E26: 263 | F26: 257671 | G26: =(A26*900+1520328600)/86400+25569 -> 2018-03-06T14:00:00
A27: 19 | B27: 261.8 | C27: 263.4 | D27: 261.6 | E27: 263.4 | F27: 570391 | G27: =(A27*900+1520328600)/86400+25569 -> 2018-03-06T14:15:00
A28: 20 | B28: 261 | C28: 262.15 | D28: 260.35 | E28: 262 | F28: 1346390 | G28: =(A28*900+1520328600)/86400+25569 -> 2018-03-06T14:30:00
A29: 21 | B29: 259.25 | C29: 261 | D29: 258.75 | E29: 261 | F29: 1493810 | G29: =(A29*900+1520328600)/86400+25569 -> 2018-03-06T14:45:00
A30: 22 | B30: 257.8 | C30: 259.4 | D30: 257.3 | E30: 259.3 | F30: 1440192 | G30: =(A30*900+1520328600)/86400+25569 -> 2018-03-06T15:00:00
A31: 23 | B31: 256.25 | C31: 258.2 | D31: 256.2 | E31: 257.9 | F31: 1308267 | G31: =(A31*900+1520328600)/86400+25569 -> 2018-03-06T15:15:00
A32: 24 | B32: 255.35 | C32: 256.4 | D32: 255 | E32: 256.25 | F32: 1428994 | G32: =(A32*900+1520328600)/86400+25569 -> 2018-03-06T15:30:00
A33: 95 | B33: 255.05 | C33: 255.05 | D33: 255.05 | E33: 255.05 | F33: 34634 | G33: =(A33*900+1520328600)/86400+25569 -> 2018-03-07T09:15:00
A34: 96 | B34: 253.4 | C34: 255 | D34: 251.35 | E34: 255 | F34: 2927639 | G34: =(A34*900+1520328600)/86400+25569 -> 2018-03-07T09:30:00
A35: 97 | B35: 252.5 | C35: 253.4 | D35: 251.75 | E35: 253.3 | F35: 978487 | G35: =(A35*900+1520328600)/86400+25569 -> 2018-03-07T09:45:00
A36: 98 | B36: 253.3 | C36: 253.6 | D36: 252.3 | E36: 252.5 | F36: 971541 | G36: =(A36*900+1520328600)/86400+25569 -> 2018-03-07T10:00:00
A37: 99 | B37: 252.6 | C37: 253.85 | D37: 251.8 | E37: 253.35 | F37: 1151547 | G37: =(A37*900+1520328600)/86400+25569 -> 2018-03-07T10:15:00
A38: 100 | B38: 252 | C38: 253 | D38: 251.8 | E38: 252.6 | F38: 641143 | G38: =(A38*900+1520328600)/86400+25569 -> 2018-03-07T10:30:00
A39: 101 | B39: 250.85 | C39: 252.35 | D39: 250.3 | E39: 252 | F39: 1262858 | G39: =(A39*900+1520328600)/86400+25569 -> 2018-03-07T10:45:00
A40: 102 | B40: 250.35 | C40: 250.95 | D40: 250.05 | E40: 250.8 | F40: 1095172 | G40: =(A40*900+1520328600)/86400+25569 -> 2018-03-07T11:00:00
A41: 103 | B41: 249.2 | C41: 250.6 | D41: 249.2 | E41: 250.35 | F41: 1237172 | G41: =(A41*900+1520328600)/86400+25569 -> 2018-03-07T11:15:00
A42: 104 | B42: 249.55 | C42: 249.85 | D42: 248.4 | E42: 249.2 | F42: 1116091 | G42: =(A42*900+1520328600)/86400+25569 -> 2018-03-07T11:30:00
A43: 105 | B43: 246.9 | C43: 249.65 | D43: 246.2 | E43: 249.55 | F43: 2336504 | G43: =(A43*900+1520328600)/86400+25569 -> 2018-03-07T11:45:00
A44: 106 | B44: 248.75 | C44: 248.75 | D44: 246.5 | E44: 246.85 | F44: 1440263 | G44: =(A44*900+1520328600)/86400+25569 -> 2018-03-07T12:00:00
A45: 107 | B45: 248.3 | C45: 249.35 | D45: 248.05 | E45: 248.7 | F45: 1136919 | G45: =(A45*900+1520328600)/86400+25569 -> 2018-03-07T12:15:00
A46: 108 | B46: 247.95 | C46: 249.2 | D46: 247.65 | E46: 248.3 | F46: 791802 | G46: =(A46*900+1520328600)/86400+25569 -> 2018-03-07T12:30:00
A47: 109 | B47: 248.55 | C47: 249.1 | D47: 247.65 | E47: 247.85 | F47: 686528 | G47: =(A47*900+1520328600)/86400+25569 -> 2018-03-07T12:45:00
A48: 110 | B48: 247.3 | C48: 249 | D48: 247.15 | E48: 248.6 | F48: 835973 | G48: =(A48*900+1520328600)/86400+25569 -> 2018-03-07T13:00:00
A49: 111 | B49: 247.5 | C49: 247.9 | D49: 246.8 | E49: 247.3 | F49: 688840 | G49: =(A49*900+1520328600)/86400+25569 -> 2018-03-07T13:15:00
A50: 112 | B50: 247.35 | C50: 248.15 | D50: 246.85 | E50: 247.45 | F50: 519465 | G50: =(A50*900+1520328600)/86400+25569 -> 2018-03-07T13:30:00
A51: 113 | B51: 247.4 | C51: 247.75 | D51: 247 | E51: 247.6 | F51: 481765 | G51: =(A51*900+1520328600)/86400+25569 -> 2018-03-07T13:45:00
A52: 114 | B52: 248.4 | C52: 249.2 | D52: 247.3 | E52: 247.4 | F52: 1015427 | G52: =(A52*900+1520328600)/86400+25569 -> 2018-03-07T14:00:00
A53: 115 | B53: 247.65 | C53: 248.6 | D53: 246.2 | E53: 248.45 | F53: 1304616 | G53: =(A53*900+1520328600)/86400+25569 -> 2018-03-07T14:15:00
A54: 116 | B54: 248.3 | C54: 248.4 | D54: 247.05 | E54: 247.5 | F54: 970099 | G54: =(A54*900+1520328600)/86400+25569 -> 2018-03-07T14:30:00
A55: 117 | B55: 247.45 | C55: 248.4 | D55: 247.05 | E55: 248.3 | F55: 838719 | G55: =(A55*900+1520328600)/86400+25569 -> 2018-03-07T14:45:00
A56: 118 | B56: 247.5 | C56: 248.15 | D56: 246.35 | E56: 247.45 | F56: 1540372 | G56: =(A56*900+1520328600)/86400+25569 -> 2018-03-07T15:00:00
A57: 119 | B57: 246.6 | C57: 247.7 | D57: 246.25 | E57: 247.55 | F57: 1480370 | G57: =(A57*900+1520328600)/86400+25569 -> 2018-03-07T15:15:00
A58: 120 | B58: 246.7 | C58: 247.15 | D58: 246.05 | E58: 246.7 | F58: 3764754 | G58: =(A58*900+1520328600)/86400+25569 -> 2018-03-07T15:30:00
A59: 191 | B59: 247.5 | C59: 247.5 | D59: 247 | E59: 247 | F59: 49448 | G59: =(A59*900+1520328600)/86400+25569 -> 2018-03-08T09:15:00
A60: 192 | B60: 247.95 | C60: 249.5 | D60: 247.1 | E60: 247.55 | F60: 1811625 | G60: =(A60*900+1520328600)/86400+25569 -> 2018-03-08T09:30:00
A61: 193 | B61: 245.3 | C61: 248.25 | D61: 245.2 | E61: 248 | F61: 1572236 | G61: =(A61*900+1520328600)/86400+25569 -> 2018-03-08T09:45:00
A62: 194 | B62: 244.7 | C62: 246.2 | D62: 244.3 | E62: 245.3 | F62: 1165475 | G62: =(A62*900+1520328600)/86400+25569 -> 2018-03-08T10:00:00
A63: 195 | B63: 245.95 | C63: 246.5 | D63: 244.75 | E63: 244.9 | F63: 898935 | G63: =(A63*900+1520328600)/86400+25569 -> 2018-03-08T10:15:00
A64: 196 | B64: 245.3 | C64: 246 | D64: 245 | E64: 246 | F64: 430967 | G64: =(A64*900+1520328600)/86400+25569 -> 2018-03-08T10:30:00
A65: 197 | B65: 245.7 | C65: 245.8 | D65: 245 | E65: 245.35 | F65: 815380 | G65: =(A65*900+1520328600)/86400+25569 -> 2018-03-08T10:45:00
A66: 198 | B66: 246.75 | C66: 247.7 | D66: 245.7 | E66: 245.7 | F66: 1210204 | G66: =(A66*900+1520328600)/86400+25569 -> 2018-03-08T11:00:00
A67: 199 | B67: 247.85 | C67: 248.7 | D67: 246.6 | E67: 246.7 | F67: 1171468 | G67: =(A67*900+1520328600)/86400+25569 -> 2018-03-08T11:15:00
A68: 200 | B68: 247.85 | C68: 248.6 | D68: 247.15 | E68: 247.85 | F68: 910172 | G68: =(A68*900+1520328600)/86400+25569 -> 2018-03-08T11:30:00
A69: 201 | B69: 250.3 | C69: 250.9 | D69: 247.75 | E69: 247.8 | F69: 1314147 | G69: =(A69*900+1520328600)/86400+25569 -> 2018-03-08T11:45:00
A70: 202 | B70: 251.15 | C70: 251.65 | D70: 249.6 | E70: 250.3 | F70: 1644218 | G70: =(A70*900+1520328600)/86400+25569 -> 2018-03-08T12:00:00
A71: 203 | B71: 250.95 | C71: 251.4 | D71: 249.65 | E71: 251.2 | F71: 1308153 | G71: =(A71*900+1520328600)/86400+25569 -> 2018-03-08T12:15:00
A72: 204 | B72: 251.15 | C72: 251.95 | D72: 250.75 | E72: 250.85 | F72: 994351 | G72: =(A72*900+1520328600)/86400+25569 -> 2018-03-08T12:30:00
A73: 205 | B73: 252.45 | C73: 253.3 | D73: 251.1 | E73: 251.1 | F73: 1531932 | G73: =(A73*900+1520328600)/86400+25569 -> 2018-03-08T12:45:00
A74: 206 | B74: 252.1 | C74: 253 | D74: 251.65 | E74: 252.45 | F74: 1008403 | G74: =(A74*900+1520328600)/86400+25569 -> 2018-03-08T13:00:00
A75: 207 | B75: 250.75 | C75: 252.8 | D75: 250.5 | E75: 252.2 | F75: 1192228 | G75: =(A75*900+1520328600)/86400+25569 -> 2018-03-08T13:15:00
A76: 208 | B76: 251.6 | C76: 252.25 | D76: 250.65 | E76: 250.65 | F76: 836535 | G76: =(A76*900+1520328600)/86400+25569 -> 2018-03-08T13:30:00
A77: 209 | B77: 252.05 | C77: 252.5 | D77: 251.2 | E77: 251.6 | F77: 526992 | G77: =(A77*900+1520328600)/86400+25569 -> 2018-03-08T13:45:00
A78: 210 | B78: 251.6 | C78: 252 | D78: 251.3 | E78: 252 | F78: 509671 | G78: =(A78*900+1520328600)/86400+25569 -> 2018-03-08T14:00:00
A79: 211 | B79: 251.8 | C79: 252 | D79: 251.05 | E79: 251.6 | F79: 560714 | G79: =(A79*900+1520328600)/86400+25569 -> 2018-03-08T14:15:00
A80: 212 | B80: 252.8 | C80: 253.95 | D80: 251.75 | E80: 251.8 | F80: 1309227 | G80: =(A80*900+1520328600)/86400+25569 -> 2018-03-08T14:30:00
A81: 213 | B81: 254.85 | C81: 255.5 | D81: 252.9 | E81: 253 | F81: 2484048 | G81: =(A81*900+1520328600)/86400+25569 -> 2018-03-08T14:45:00
A82: 214 | B82: 256.35 | C82: 256.6 | D82: 253.9 | E82: 254.8 | F82: 1992626 | G82: =(A82*900+1520328600)/86400+25569 -> 2018-03-08T15:00:00
A83: 215 | B83: 256.1 | C83: 257.6 | D83: 255.85 | E83: 256.15 | F83: 2813375 | G83: =(A83*900+1520328600)/86400+25569 -> 2018-03-08T15:15:00
A84: 216 | B84: 256.65 | C84: 257.65 | D84: 256.1 | E84: 256.15 | F84: 3064398 | G84: =(A84*900+1520328600)/86400+25569 -> 2018-03-08T15:30:00
A85: 2.872572573e+19 | G85: =(A85*900+1520328600)/86400+25569 -> 2.992263096e+17
A86: 288 | B86: 254.15 | C86: 257.25 | D86: 252.55 | E86: 257.25 | F86: 2735843 | G86: =(A86*900+1520328600)/86400+25569 -> 2018-03-09T09:30:00
A87: 289 | B87: 254 | C87: 254.4 | D87: 253 | E87: 253.95 | F87: 1310331 | G87: =(A87*900+1520328600)/86400+25569 -> 2018-03-09T09:45:00
A88: 290 | B88: 254.45 | C88: 254.85 | D88: 253.9 | E88: 254 | F88: 1046632 | G88: =(A88*900+1520328600)/86400+25569 -> 2018-03-09T10:00:00
A89: 291 | B89: 254.25 | C89: 255 | D89: 253.6 | E89: 254.5 | F89: 1069273 | G89: =(A89*900+1520328600)/86400+25569 -> 2018-03-09T10:15:00
A90: 292 | B90: 254.45 | C90: 254.5 | D90: 253.7 | E90: 254.2 | F90: 433825 | G90: =(A90*900+1520328600)/86400+25569 -> 2018-03-09T10:30:00
A91: 293 | B91: 253.8 | C91: 254.75 | D91: 253.5 | E91: 254.5 | F91: 693297 | G91: =(A91*900+1520328600)/86400+25569 -> 2018-03-09T10:45:00
A92: 294 | B92: 254 | C92: 254.45 | D92: 253.3 | E92: 253.8 | F92: 569792 | G92: =(A92*900+1520328600)/86400+25569 -> 2018-03-09T11:00:00
A93: 295 | B93: 254.25 | C93: 254.5 | D93: 253.9 | E93: 254 | F93: 410846 | G93: =(A93*900+1520328600)/86400+25569 -> 2018-03-09T11:15:00
A94: 296 | B94: 253.7 | C94: 254.45 | D94: 253.65 | E94: 254.3 | F94: 424155 | G94: =(A94*900+1520328600)/86400+25569 -> 2018-03-09T11:30:00
A95: 297 | B95: 252.55 | C95: 253.75 | D95: 251.75 | E95: 253.7 | F95: 1540116 | G95: =(A95*900+1520328600)/86400+25569 -> 2018-03-09T11:45:00
A96: 298 | B96: 253.05 | C96: 253.55 | D96: 252.1 | E96: 252.6 | F96: 551155 | G96: =(A96*900+1520328600)/86400+25569 -> 2018-03-09T12:00:00
A97: 299 | B97: 252.9 | C97: 253.75 | D97: 252.85 | E97: 253.05 | F97: 422148 | G97: =(A97*900+1520328600)/86400+25569 -> 2018-03-09T12:15:00
A98: 300 | B98: 253.2 | C98: 253.2 | D98: 252.5 | E98: 252.85 | F98: 346665 | G98: =(A98*900+1520328600)/86400+25569 -> 2018-03-09T12:30:00
A99: 301 | B99: 253.85 | C99: 254.35 | D99: 253.1 | E99: 253.1 | F99: 822155 | G99: =(A99*900+1520328600)/86400+25569 -> 2018-03-09T12:45:00
A100: 302 | B100: 253.2 | C100: 254 | D100: 253 | E100: 253.85 | F100: 398760 | G100: =(A100*900+1520328600)/86400+25569 -> 2018-03-09T13:00:00
A101: 303 | B101: 254.25 | C101: 254.45 | D101: 253.15 | E101: 253.25 | F101: 384990 | G101: =(A101*900+1520328600)/86400+25569 -> 2018-03-09T13:15:00
A102: 304 | B102: 254.9 | C102: 255.9 | D102: 253.85 | E102: 254.2 | F102: 1060131 | G102: =(A102*900+1520328600)/86400+25569 -> 2018-03-09T13:30:00
A103: 305 | B103: 254.8 | C103: 255.4 | D103: 254.4 | E103: 254.9 | F103: 644557 | G103: =(A103*900+1520328600)/86400+25569 -> 2018-03-09T13:45:00
A104: 306 | B104: 254.15 | C104: 255 | D104: 253.8 | E104: 254.8 | F104: 638915 | G104: =(A104*900+1520328600)/86400+25569 -> 2018-03-09T14:00:00
A105: 307 | B105: 253.75 | C105: 254.5 | D105: 253.3 | E105: 254.15 | F105: 583561 | G105: =(A105*900+1520328600)/86400+25569 -> 2018-03-09T14:15:00
A106: 308 | B106: 254.85 | C106: 255.2 | D106: 253.35 | E106: 253.75 | F106: 838260 | G106: =(A106*900+1520328600)/86400+25569 -> 2018-03-09T14:30:00
A107: 309 | B107: 253.9 | C107: 255.5 | D107: 253.6 | E107: 254.85 | F107: 899019 | G107: =(A107*900+1520328600)/86400+25569 -> 2018-03-09T14:45:00
A108: 310 | B108: 253.95 | C108: 254.25 | D108: 253.25 | E108: 253.95 | F108: 1202569 | G108: =(A108*900+1520328600)/86400+25569 -> 2018-03-09T15:00:00
A109: 311 | B109: 252.95 | C109: 254.1 | D109: 252.6 | E109: 254.05 | F109: 1211747 | G109: =(A109*900+1520328600)/86400+25569 -> 2018-03-09T15:15:00
A110: 312 | B110: 253.65 | C110: 254 | D110: 252.9 | E110: 252.9 | F110: 1248359 | G110: =(A110*900+1520328600)/86400+25569 -> 2018-03-09T15:30:00
A111: 575 | B111: 254.35 | C111: 254.35 | D111: 254.1 | E111: 254.1 | F111: 25640 | G111: =(A111*900+1520328600)/86400+25569 -> 2018-03-12T09:15:00
A112: 576 | B112: 250.35 | C112: 255 | D112: 250 | E112: 254.45 | F112: 2239505 | G112: =(A112*900+1520328600)/86400+25569 -> 2018-03-12T09:30:00
A113: 577 | B113: 250 | C113: 250.7 | D113: 249.05 | E113: 250.35 | F113: 1374165 | G113: =(A113*900+1520328600)/86400+25569 -> 2018-03-12T09:45:00
A114: 578 | B114: 250.2 | C114: 251.3 | D114: 249.8 | E114: 250.05 | F114: 1015725 | G114: =(A114*900+1520328600)/86400+25569 -> 2018-03-12T10:00:00
A115: 579 | B115: 250.2 | C115: 251.45 | D115: 250 | E115: 250.25 | F115: 900316 | G115: =(A115*900+1520328600)/86400+25569 -> 2018-03-12T10:15:00
A116: 580 | B116: 249.85 | C116: 250.8 | D116: 249.5 | E116: 250.25 | F116: 737020 | G116: =(A116*900+1520328600)/86400+25569 -> 2018-03-12T10:30:00
A117: 581 | B117: 250.2 | C117: 250.5 | D117: 249.15 | E117: 249.95 | F117: 1055210 | G117: =(A117*900+1520328600)/86400+25569 -> 2018-03-12T10:45:00
A118: 582 | B118: 249.45 | C118: 251.1 | D118: 248.5 | E118: 250.25 | F118: 1403151 | G118: =(A118*900+1520328600)/86400+25569 -> 2018-03-12T11:00:00
A119: 583 | B119: 248.95 | C119: 250 | D119: 248.9 | E119: 249.55 | F119: 697922 | G119: =(A119*900+1520328600)/86400+25569 -> 2018-03-12T11:15:00
A120: 584 | B120: 248.4 | C120: 249.4 | D120: 248.1 | E120: 249.05 | F120: 969274 | G120: =(A120*900+1520328600)/86400+25569 -> 2018-03-12T11:30:00
A121: 585 | B121: 249.05 | C121: 249.25 | D121: 247.75 | E121: 248.35 | F121: 1562645 | G121: =(A121*900+1520328600)/86400+25569 -> 2018-03-12T11:45:00
A122: 586 | B122: 248.9 | C122: 249.1 | D122: 248.5 | E122: 249.05 | F122: 412030 | G122: =(A122*900+1520328600)/86400+25569 -> 2018-03-12T12:00:00
A123: 587 | B123: 248.65 | C123: 249 | D123: 248.35 | E123: 248.9 | F123: 405949 | G123: =(A123*900+1520328600)/86400+25569 -> 2018-03-12T12:15:00
A124: 588 | B124: 247.85 | C124: 248.65 | D124: 247.25 | E124: 248.6 | F124: 784930 | G124: =(A124*900+1520328600)/86400+25569 -> 2018-03-12T12:30:00
A125: 589 | B125: 248.85 | C125: 249.2 | D125: 247.7 | E125: 247.9 | F125: 660633 | G125: =(A125*900+1520328600)/86400+25569 -> 2018-03-12T12:45:00
A126: 590 | B126: 249.05 | C126: 249.75 | D126: 248.4 | E126: 248.85 | F126: 569958 | G126: =(A126*900+1520328600)/86400+25569 -> 2018-03-12T13:00:00
A127: 591 | B127: 249.2 | C127: 249.6 | D127: 248.7 | E127: 249.05 | F127: 543055 | G127: =(A127*900+1520328600)/86400+25569 -> 2018-03-12T13:15:00
A128: 592 | B128: 248.9 | C128: 249.3 | D128: 248.55 | E128: 249.05 | F128: 416493 | G128: =(A128*900+1520328600)/86400+25569 -> 2018-03-12T13:30:00
A129: 593 | B129: 249.25 | C129: 250 | D129: 248.8 | E129: 248.85 | F129: 937564 | G129: =(A129*900+1520328600)/86400+25569 -> 2018-03-12T13:45:00
A130: 594 | B130: 249.7 | C130: 249.85 | D130: 248.85 | E130: 249.25 | F130: 497048 | G130: =(A130*900+1520328600)/86400+25569 -> 2018-03-12T14:00:00
A131: 595 | B131: 249.45 | C131: 249.8 | D131: 248.85 | E131: 249.8 | F131: 477743 | G131: =(A131*900+1520328600)/86400+25569 -> 2018-03-12T14:15:00
A132: 596 | B132: 249.05 | C132: 249.45 | D132: 248.85 | E132: 249.45 | F132: 486001 | G132: =(A132*900+1520328600)/86400+25569 -> 2018-03-12T14:30:00
A133: 597 | B133: 249.7 | C133: 249.85 | D133: 248.9 | E133: 249 | F133: 611825 | G133: =(A133*900+1520328600)/86400+25569 -> 2018-03-12T14:45:00
A134: 598 | B134: 250.55 | C134: 250.95 | D134: 249.4 | E134: 249.7 | F134: 2021747 | G134: =(A134*900+1520328600)/86400+25569 -> 2018-03-12T15:00:00
A135: 599 | B135: 253.65 | C135: 254.65 | D135: 250.5 | E135: 250.65 | F135: 2792838 | G135: =(A135*900+1520328600)/86400+25569 -> 2018-03-12T15:15:00
A136: 600 | B136: 253.55 | C136: 254 | D136: 252.75 | E136: 253.65 | F136: 1730362 | G136: =(A136*900+1520328600)/86400+25569 -> 2018-03-12T15:30:00
A137: 671 | B137: 251.3 | C137: 251.3 | D137: 251.3 | E137: 251.3 | F137: 27410 | G137: =(A137*900+1520328600)/86400+25569 -> 2018-03-13T09:15:00
A138: 672 | B138: 255.25 | C138: 256.95 | D138: 250.4 | E138: 251 | F138: 3715544 | G138: =(A138*900+1520328600)/86400+25569 -> 2018-03-13T09:30:00
A139: 673 | B139: 256 | C139: 256.65 | D139: 255.05 | E139: 255.4 | F139: 1743297 | G139: =(A139*900+1520328600)/86400+25569 -> 2018-03-13T09:45:00
A140: 674 | B140: 259.15 | C140: 259.85 | D140: 255.85 | E140: 256.05 | F140: 2620584 | G140: =(A140*900+1520328600)/86400+25569 -> 2018-03-13T10:00:00
A141: 675 | B141: 259.3 | C141: 259.75 | D141: 258 | E141: 259.35 | F141: 1267084 | G141: =(A141*900+1520328600)/86400+25569 -> 2018-03-13T10:15:00
A142: 676 | B142: 258.95 | C142: 260.15 | D142: 258.6 | E142: 259.35 | F142: 1385384 | G142: =(A142*900+1520328600)/86400+25569 -> 2018-03-13T10:30:00
A143: 677 | B143: 257.75 | C143: 259 | D143: 257.6 | E143: 259 | F143: 862709 | G143: =(A143*900+1520328600)/86400+25569 -> 2018-03-13T10:45:00
A144: 678 | B144: 257.7 | C144: 258.75 | D144: 257.05 | E144: 257.7 | F144: 995817 | G144: =(A144*900+1520328600)/86400+25569 -> 2018-03-13T11:00:00
A145: 679 | B145: 257.35 | C145: 258.3 | D145: 257.05 | E145: 257.7 | F145: 552182 | G145: =(A145*900+1520328600)/86400+25569 -> 2018-03-13T11:15:00
A146: 680 | B146: 258 | C146: 258.5 | D146: 257.2 | E146: 257.4 | F146: 606961 | G146: =(A146*900+1520328600)/86400+25569 -> 2018-03-13T11:30:00
A147: 681 | B147: 259.25 | C147: 259.35 | D147: 257.4 | E147: 258.05 | F147: 871321 | G147: =(A147*900+1520328600)/86400+25569 -> 2018-03-13T11:45:00
A148: 682 | B148: 259.25 | C148: 260 | D148: 258.7 | E148: 259.3 | F148: 1032283 | G148: =(A148*900+1520328600)/86400+25569 -> 2018-03-13T12:00:00
A149: 683 | B149: 260.35 | C149: 260.45 | D149: 258.65 | E149: 259.3 | F149: 1192074 | G149: =(A149*900+1520328600)/86400+25569 -> 2018-03-13T12:15:00
A150: 684 | B150: 259.4 | C150: 260.45 | D150: 259 | E150: 260.25 | F150: 1019724 | G150: =(A150*900+1520328600)/86400+25569 -> 2018-03-13T12:30:00
A151: 685 | B151: 260.65 | C151: 261.5 | D151: 259.4 | E151: 259.4 | F151: 1642410 | G151: =(A151*900+1520328600)/86400+25569 -> 2018-03-13T12:45:00
A152: 686 | B152: 261.95 | C152: 262.4 | D152: 260.65 | E152: 260.7 | F152: 1541894 | G152: =(A152*900+1520328600)/86400+25569 -> 2018-03-13T13:00:00
A153: 687 | B153: 260.7 | C153: 261.95 | D153: 260.1 | E153: 261.9 | F153: 1193949 | G153: =(A153*900+1520328600)/86400+25569 -> 2018-03-13T13:15:00
A154: 688 | B154: 260 | C154: 260.75 | D154: 259.2 | E154: 260.6 | F154: 1039964 | G154: =(A154*900+1520328600)/86400+25569 -> 2018-03-13T13:30:00
A155: 689 | B155: 259.25 | C155: 260.1 | D155: 259 | E155: 260 | F155: 907449 | G155: =(A155*900+1520328600)/86400+25569 -> 2018-03-13T13:45:00
A156: 690 | B156: 254.25 | C156: 259.3 | D156: 253.25 | E156: 259.3 | F156: 3496976 | G156: =(A156*900+1520328600)/86400+25569 -> 2018-03-13T14:00:00
A157: 691 | B157: 253.75 | C157: 255.3 | D157: 252.25 | E157: 254.25 | F157: 2138134 | G157: =(A157*900+1520328600)/86400+25569 -> 2018-03-13T14:15:00
A158: 692 | B158: 254.4 | C158: 255.55 | D158: 253.6 | E158: 253.7 | F158: 1205704 | G158: =(A158*900+1520328600)/86400+25569 -> 2018-03-13T14:30:00
A159: 693 | B159: 253.85 | C159: 254.6 | D159: 253.3 | E159: 254.35 | F159: 1123830 | G159: =(A159*900+1520328600)/86400+25569 -> 2018-03-13T14:45:00
A160: 694 | B160: 255.75 | C160: 257.05 | D160: 253.6 | E160: 253.8 | F160: 2174085 | G160: =(A160*900+1520328600)/86400+25569 -> 2018-03-13T15:00:00
A161: 695 | B161: 253.6 | C161: 256.35 | D161: 253.45 | E161: 255.65 | F161: 1838645 | G161: =(A161*900+1520328600)/86400+25569 -> 2018-03-13T15:15:00
A162: 696 | B162: 254.1 | C162: 254.7 | D162: 253.25 | E162: 253.5 | F162: 1441125 | G162: =(A162*900+1520328600)/86400+25569 -> 2018-03-13T15:30:00
A163: 767 | B163: 252.15 | C163: 252.5 | D163: 252.15 | E163: 252.5 | F163: 48126 | G163: =(A163*900+1520328600)/86400+25569 -> 2018-03-14T09:15:00
A164: 768 | B164: 250.6 | C164: 251.9 | D164: 250 | E164: 251.9 | F164: 2321829 | G164: =(A164*900+1520328600)/86400+25569 -> 2018-03-14T09:30:00
A165: 769 | B165: 251.4 | C165: 251.55 | D165: 250.35 | E165: 250.55 | F165: 1514865 | G165: =(A165*900+1520328600)/86400+25569 -> 2018-03-14T09:45:00
A166: 770 | B166: 251.65 | C166: 252.95 | D166: 251.25 | E166: 251.35 | F166: 1274267 | G166: =(A166*900+1520328600)/86400+25569 -> 2018-03-14T10:00:00
A167: 771 | B167: 250.85 | C167: 251.75 | D167: 250.8 | E167: 251.55 | F167: 640829 | G167: =(A167*900+1520328600)/86400+25569 -> 2018-03-14T10:15:00
A168: 772 | B168: 251.8 | C168: 252.2 | D168: 250.75 | E168: 250.9 | F168: 563633 | G168: =(A168*900+1520328600)/86400+25569 -> 2018-03-14T10:30:00
A169: 773 | B169: 252.2 | C169: 252.25 | D169: 250.8 | E169: 251.8 | F169: 537107 | G169: =(A169*900+1520328600)/86400+25569 -> 2018-03-14T10:45:00
A170: 774 | B170: 251.75 | C170: 252.75 | D170: 251.7 | E170: 252.1 | F170: 629687 | G170: =(A170*900+1520328600)/86400+25569 -> 2018-03-14T11:00:00
A171: 775 | B171: 251.7 | C171: 251.9 | D171: 251.05 | E171: 251.75 | F171: 437835 | G171: =(A171*900+1520328600)/86400+25569 -> 2018-03-14T11:15:00
A172: 776 | B172: 250.85 | C172: 251.9 | D172: 250.85 | E172: 251.8 | F172: 432239 | G172: =(A172*900+1520328600)/86400+25569 -> 2018-03-14T11:30:00
A173: 777 | B173: 251.6 | C173: 251.6 | D173: 250.8 | E173: 250.9 | F173: 748129 | G173: =(A173*900+1520328600)/86400+25569 -> 2018-03-14T11:45:00
A174: 778 | B174: 252 | C174: 252 | D174: 251.2 | E174: 251.5 | F174: 549789 | G174: =(A174*900+1520328600)/86400+25569 -> 2018-03-14T12:00:00
A175: 779 | B175: 251.75 | C175: 252.65 | D175: 251.65 | E175: 252 | F175: 643835 | G175: =(A175*900+1520328600)/86400+25569 -> 2018-03-14T12:15:00
A176: 780 | B176: 252.1 | C176: 252.4 | D176: 251.35 | E176: 251.85 | F176: 519797 | G176: =(A176*900+1520328600)/86400+25569 -> 2018-03-14T12:30:00
A177: 781 | B177: 253.2 | C177: 253.8 | D177: 252.1 | E177: 252.2 | F177: 1331351 | G177: =(A177*900+1520328600)/86400+25569 -> 2018-03-14T12:45:00
A178: 782 | B178: 254 | C178: 254.7 | D178: 253.1 | E178: 253.2 | F178: 1038359 | G178: =(A178*900+1520328600)/86400+25569 -> 2018-03-14T13:00:00
A179: 783 | B179: 254.6 | C179: 255.2 | D179: 253.65 | E179: 254 | F179: 1432183 | G179: =(A179*900+1520328600)/86400+25569 -> 2018-03-14T13:15:00
A180: 784 | B180: 255.35 | C180: 255.95 | D180: 254.4 | E180: 254.6 | F180: 1426730 | G180: =(A180*900+1520328600)/86400+25569 -> 2018-03-14T13:30:00
A181: 785 | B181: 255.25 | C181: 256.8 | D181: 255.2 | E181: 255.35 | F181: 1687441 | G181: =(A181*900+1520328600)/86400+25569 -> 2018-03-14T13:45:00
A182: 786 | B182: 254.75 | C182: 255.95 | D182: 254.3 | E182: 255.2 | F182: 845679 | G182: =(A182*900+1520328600)/86400+25569 -> 2018-03-14T14:00:00
A183: 787 | B183: 254.6 | C183: 255.55 | D183: 254.5 | E183: 254.7 | F183: 584422 | G183: =(A183*900+1520328600)/86400+25569 -> 2018-03-14T14:15:00
A184: 788 | B184: 254.3 | C184: 255.2 | D184: 254.1 | E184: 254.55 | F184: 666952 | G184: =(A184*900+1520328600)/86400+25569 -> 2018-03-14T14:30:00
A185: 789 | B185: 256.4 | C185: 256.5 | D185: 254.3 | E185: 254.3 | F185: 1121222 | G185: =(A185*900+1520328600)/86400+25569 -> 2018-03-14T14:45:00
A186: 790 | B186: 255.7 | C186: 257.7 | D186: 255.5 | E186: 256.5 | F186: 1708681 | G186: =(A186*900+1520328600)/86400+25569 -> 2018-03-14T15:00:00
A187: 791 | B187: 257.05 | C187: 257.15 | D187: 255.8 | E187: 255.8 | F187: 1186427 | G187: =(A187*900+1520328600)/86400+25569 -> 2018-03-14T15:15:00
A188: 792 | B188: 257.8 | C188: 257.8 | D188: 257 | E188: 257.1 | F188: 1570471 | G188: =(A188*900+1520328600)/86400+25569 -> 2018-03-14T15:30:00
A189: 8.632572573e+19 | G189: =(A189*900+1520328600)/86400+25569 -> 8.992263096e+17
A190: 864 | B190: 257.4 | C190: 258 | D190: 255.05 | E190: 257.6 | F190: 1942175 | G190: =(A190*900+1520328600)/86400+25569 -> 2018-03-15T09:30:00
A191: 865 | B191: 256.35 | C191: 257.55 | D191: 256.05 | E191: 257.4 | F191: 727476 | G191: =(A191*900+1520328600)/86400+25569 -> 2018-03-15T09:45:00
A192: 866 | B192: 256.8 | C192: 257 | D192: 255.6 | E192: 256.2 | F192: 1175528 | G192: =(A192*900+1520328600)/86400+25569 -> 2018-03-15T10:00:00
A193: 867 | B193: 257.35 | C193: 258.7 | D193: 256.8 | E193: 256.8 | F193: 1073164 | G193: =(A193*900+1520328600)/86400+25569 -> 2018-03-15T10:15:00
A194: 868 | B194: 257.25 | C194: 258.2 | D194: 256.95 | E194: 257.4 | F194: 562002 | G194: =(A194*900+1520328600)/86400+25569 -> 2018-03-15T10:30:00
A195: 869 | B195: 256.4 | C195: 257.3 | D195: 256.4 | E195: 257.25 | F195: 471817 | G195: =(A195*900+1520328600)/86400+25569 -> 2018-03-15T10:45:00
A196: 870 | B196: 256.3 | C196: 256.85 | D196: 256 | E196: 256.45 | F196: 467756 | G196: =(A196*900+1520328600)/86400+25569 -> 2018-03-15T11:00:00
A197: 871 | B197: 255.25 | C197: 256.4 | D197: 255.25 | E197: 256.3 | F197: 683366 | G197: =(A197*900+1520328600)/86400+25569 -> 2018-03-15T11:15:00
A198: 872 | B198: 254.95 | C198: 255.85 | D198: 254.55 | E198: 255.35 | F198: 660027 | G198: =(A198*900+1520328600)/86400+25569 -> 2018-03-15T11:30:00
A199: 873 | B199: 255.5 | C199: 255.8 | D199: 254.85 | E199: 254.95 | F199: 386564 | G199: =(A199*900+1520328600)/86400+25569 -> 2018-03-15T11:45:00
A200: 874 | B200: 256.1 | C200: 256.5 | D200: 255.5 | E200: 255.6 | F200: 547776 | G200: =(A200*900+1520328600)/86400+25569 -> 2018-03-15T12:00:00
... 326 more rows

Sheet GetData
A1: Date | B1: Date | C1: Open | D1: High | E1: Low | F1: Close | G1: Volume | H1: Money Flow Multiplier | I1: Money Flow Volume | J1: Chaikin Money Flow | K1: Signal | L1: BuyPrice | M1: SellPrice | N1: Profit
A2: 2018-03-06T09:30:00 | C2: 265.45 | D2: 265.85 | E2: 264.6 | F2: 265.2 | G2: 1207596 | H2: =IF(A2="","",ROUND(IFERROR(((F2-E2)-(D2-F2))/(D2-E2),0),3)) -> -0.04 | I2: =IF(A2="","",ROUND(G2*H2,2)) -> -48303.84 | J2: =IF(A2="","",IF(ROW()>$Q$16,SUM(INDIRECT("I" & ROW()-$Q$16+1):I2)/SUM(INDIRECT("G" & ROW()-$Q$16+1):G2),"")) ->  | K2: =IF(AND(J2>0,J1<0),"BUY",IF(AND(J2<0,J1>0),"SELL","")) ->  | L2: =IF(A2="","",IF(L1="BuyPrice","",IF(K2="BUY",F2,L1))) ->  | M2: =IF(OR(M1="SellPrice",L2=""),"",IF(K2="SELL",F2,"")) ->  | N2: =IF(AND(L2<>"",M2<>""),M2-L2,"") -> 
A3: 2018-03-06T09:45:00 | C3: 265.3 | D3: 265.5 | E3: 264.25 | F3: 264.6 | G3: 1053474 | H3: =IF(A3="","",ROUND(IFERROR(((F3-E3)-(D3-F3))/(D3-E3),0),3)) -> -0.44 | I3: =IF(A3="","",ROUND(G3*H3,2)) -> -463528.56 | J3: =IF(A3="","",IF(ROW()>$Q$16,SUM(INDIRECT("I" & ROW()-$Q$16+1):I3)/SUM(INDIRECT("G" & ROW()-$Q$16+1):G3),"")) -> -0.2263673394 | K3: =IF(AND(J3>0,J2<0),"BUY",IF(AND(J3<0,J2>0),"SELL","")) -> SELL | L3: =IF(A3="","",IF(L2="BuyPrice","",IF(K3="BUY",F3,L2))) ->  | M3: =IF(OR(M2="SellPrice",L3=""),"",IF(K3="SELL",F3,"")) ->  | N3: =IF(AND(L3<>"",M3<>""),M3-L3,"") -> 
A4: 2018-03-06T10:00:00 | C4: 264.6 | D4: 264.7 | E4: 263.3 | F4: 263.4 | G4: 1108833 | H4: -0.857 | I4: -950269.88 | J4: =IF(A4="","",IF(ROW()>$Q$16,SUM(INDIRECT("I" & ROW()-$Q$16+1):I4)/SUM(INDIRECT("G" & ROW()-$Q$16+1):G4),"")) -> -0.6538379795 | K4: =IF(AND(J4>0,J3<0),"BUY",IF(AND(J4<0,J3>0),"SELL","")) -> 
A5: 2018-03-06T10:15:00 | C5: 263.3 | D5: 263.55 | E5: 261.7 | F5: 262.3 | G5: 1327363 | H5: -0.351 | I5: -465904.41 | J5: =IF(A5="","",IF(ROW()>$Q$16,SUM(INDIRECT("I" & ROW()-$Q$16+1):I5)/SUM(INDIRECT("G" & ROW()-$Q$16+1):G5),"")) -> -0.5813055641
A6: 2018-03-06T10:30:00 | C6: 262.35 | D6: 263.1 | E6: 261.8 | F6: 262.25 | G6: 1265221 | H6: -0.308 | I6: -389688.07 | J6: =IF(A6="","",IF(ROW()>$Q$16,SUM(INDIRECT("I" & ROW()-$Q$16+1):I6)/SUM(INDIRECT("G" & ROW()-$Q$16+1):G6),"")) -> -0.3300153361
A7: 2018-03-06T10:45:00 | C7: 262.25 | D7: 263 | E7: 262.05 | F7: 262.95 | G7: 433845 | H7: 0.895 | I7: 388291.28 | J7: =IF(A7="","",IF(ROW()>$Q$16,SUM(INDIRECT("I" & ROW()-$Q$16+1):I7)/SUM(INDIRECT("G" & ROW()-$Q$16+1):G7),"")) -> -0.000822092844
A8: 2018-03-06T11:00:00 | C8: 262.95 | D8: 263.05 | E8: 262.2 | F8: 262.35 | G8: 312341 | H8: -0.647 | I8: -202084.63 | J8: =IF(A8="","",IF(ROW()>$Q$16,SUM(INDIRECT("I" & ROW()-$Q$16+1):I8)/SUM(INDIRECT("G" & ROW()-$Q$16+1):G8),"")) -> 0.2495445506 | K8: BUY | L8: 262.35
A9: 2018-03-06T11:15:00 | C9: 262.35 | D9: 262.9 | E9: 261.9 | F9: 262.25 | G9: 500861 | H9: -0.3 | I9: -150258.3 | J9: =IF(A9="","",IF(ROW()>$Q$16,SUM(INDIRECT("I" & ROW()-$Q$16+1):I9)/SUM(INDIRECT("G" & ROW()-$Q$16+1):G9),"")) -> -0.4332784843 | K9: SELL | L9: 262.35 | M9: 262.25 | N9: -0.1 | P9: Total Profit | Q9: =CONCATENATE(ROUND(SUM(N:N),2)," Points") -> 14.65 Points
A10: 2018-03-06T11:30:00 | C10: 262.2 | D10: 262.5 | E10: 261.05 | F10: 261.65 | G10: 1303629 | H10: -0.172 | I10: -224224.19 | J10: =IF(A10="","",IF(ROW()>$Q$16,SUM(INDIRECT("I" & ROW()-$Q$16+1):I10)/SUM(INDIRECT("G" & ROW()-$Q$16+1):G10),"")) -> -0.2075281603 | L10: 262.35
A11: 2018-03-06T11:45:00 | C11: 261.55 | D11: 261.8 | E11: 260.7 | F11: 261.4 | G11: 684007 | H11: 0.273 | I11: 186733.91 | J11: =IF(A11="","",IF(ROW()>$Q$16,SUM(INDIRECT("I" & ROW()-$Q$16+1):I11)/SUM(INDIRECT("G" & ROW()-$Q$16+1):G11),"")) -> -0.0188617433 | L11: 262.35
A12: 2018-03-06T12:00:00 | C12: 261.3 | D12: 261.75 | E12: 261.1 | F12: 261.3 | G12: 456185 | H12: -0.385 | I12: -175631.23 | J12: =IF(A12="","",IF(ROW()>$Q$16,SUM(INDIRECT("I" & ROW()-$Q$16+1):I12)/SUM(INDIRECT("G" & ROW()-$Q$16+1):G12),"")) -> 0.009737552974 | K12: BUY | L12: 261.3 | P12: Symbol | Q12: SBIN
A13: 2018-03-06T12:15:00 | C13: 261.3 | D13: 262.6 | E13: 261.1 | F13: 262.25 | G13: 684956 | H13: 0.533 | I13: 365081.55 | J13: =IF(A13="","",IF(ROW()>$Q$16,SUM(INDIRECT("I" & ROW()-$Q$16+1):I13)/SUM(INDIRECT("G" & ROW()-$Q$16+1):G13),"")) -> 0.1660183273 | L13: 261.3 | P13: Exchange | Q13: NSE
A14: 2018-03-06T12:30:00 | C14: 262.3 | D14: 263 | E14: 262.15 | F14: 262.55 | G14: 469033 | H14: -0.059 | I14: -27672.95 | J14: =IF(A14="","",IF(ROW()>$Q$16,SUM(INDIRECT("I" & ROW()-$Q$16+1):I14)/SUM(INDIRECT("G" & ROW()-$Q$16+1):G14),"")) -> 0.2923845895 | L14: 261.3 | P14: Interval (mins) | Q14: 15
A15: 2018-03-06T12:45:00 | C15: 262.6 | D15: 263.25 | E15: 262.55 | F15: 262.9 | G15: 495841 | H15: 0 | I15: 0 | J15: =IF(A15="","",IF(ROW()>$Q$16,SUM(INDIRECT("I" & ROW()-$Q$16+1):I15)/SUM(INDIRECT("G" & ROW()-$Q$16+1):G15),"")) -> -0.02868037692 | K15: SELL | L15: 261.3 | M15: 262.9 | N15: 1.6 | P15: Number of Days | Q15: 20
A16: 2018-03-06T13:00:00 | C16: 262.9 | D16: 262.9 | E16: 261.85 | F16: 262.4 | G16: 412879 | H16: 0.048 | I16: 19818.19 | J16: =IF(A16="","",IF(ROW()>$Q$16,SUM(INDIRECT("I" & ROW()-$Q$16+1):I16)/SUM(INDIRECT("G" & ROW()-$Q$16+1):G16),"")) -> 0.02180890703 | K16: BUY | L16: 262.4 | P16: Lookback Period | Q16: 2
A17: 2018-03-06T13:15:00 | C17: 262.4 | D17: 263 | E17: 262.2 | F17: 262.65 | G17: 302983 | H17: 0.125 | I17: 37872.88 | J17: =IF(A17="","",IF(ROW()>$Q$16,SUM(INDIRECT("I" & ROW()-$Q$16+1):I17)/SUM(INDIRECT("G" & ROW()-$Q$16+1):G17),"")) -> 0.08058965275 | L17: 262.4
A18: 2018-03-06T13:30:00 | C18: 262.85 | D18: 263.5 | E18: 262.7 | F18: 263.2 | G18: 447493 | H18: 0.25 | I18: 111873.25 | J18: =IF(A18="","",IF(ROW()>$Q$16,SUM(INDIRECT("I" & ROW()-$Q$16+1):I18)/SUM(INDIRECT("G" & ROW()-$Q$16+1):G18),"")) -> 0.1995348685 | L18: 262.4
A19: 2018-03-06T13:45:00 | C19: 263.2 | D19: 263.6 | E19: 262.85 | F19: 262.95 | G19: 438502 | H19: -0.733 | I19: -321421.97 | J19: =IF(A19="","",IF(ROW()>$Q$16,SUM(INDIRECT("I" & ROW()-$Q$16+1):I19)/SUM(INDIRECT("G" & ROW()-$Q$16+1):G19),"")) -> -0.2365123054 | K19: SELL | L19: 262.4 | M19: 262.95 | N19: 0.55
A20: 2018-03-06T14:00:00 | C20: 263 | D20: 263.5 | E20: 262.85 | F20: 263.3 | G20: 257671 | H20: 0.385 | I20: 99203.34 | J20: =IF(A20="","",IF(ROW()>$Q$16,SUM(INDIRECT("I" & ROW()-$Q$16+1):I20)/SUM(INDIRECT("G" & ROW()-$Q$16+1):G20),"")) -> -0.3192002994 | L20: 262.4
A21: 2018-03-06T14:15:00 | C21: 263.4 | D21: 263.4 | E21: 261.6 | F21: 261.8 | G21: 570391 | H21: -0.778 | I21: -443764.2 | J21: =IF(A21="","",IF(ROW()>$Q$16,SUM(INDIRECT("I" & ROW()-$Q$16+1):I21)/SUM(INDIRECT("G" & ROW()-$Q$16+1):G21),"")) -> -0.4161051467 | L21: 262.4
A22: 2018-03-06T14:30:00 | C22: 262 | D22: 262.15 | E22: 260.35 | F22: 261 | G22: 1346390 | H22: -0.278 | I22: -374296.42 | J22: =IF(A22="","",IF(ROW()>$Q$16,SUM(INDIRECT("I" & ROW()-$Q$16+1):I22)/SUM(INDIRECT("G" & ROW()-$Q$16+1):G22),"")) -> -0.4267887776 | L22: 262.4
A23: 2018-03-06T14:45:00 | C23: 261 | D23: 261 | E23: 258.75 | F23: 259.25 | G23: 1493810 | H23: -0.556 | I23: -830558.36 | J23: =IF(A23="","",IF(ROW()>$Q$16,SUM(INDIRECT("I" & ROW()-$Q$16+1):I23)/SUM(INDIRECT("G" & ROW()-$Q$16+1):G23),"")) -> -0.4242147666 | L23: 262.4
A24: 2018-03-06T15:00:00 | C24: 259.3 | D24: 259.4 | E24: 257.3 | F24: 257.8 | G24: 1440192 | H24: -0.524 | I24: -754660.61 | J24: =IF(A24="","",IF(ROW()>$Q$16,SUM(INDIRECT("I" & ROW()-$Q$16+1):I24)/SUM(INDIRECT("G" & ROW()-$Q$16+1):G24),"")) -> -0.5402923958 | L24: 262.4
A25: 2018-03-06T15:15:00 | C25: 257.9 | D25: 258.2 | E25: 256.2 | F25: 256.25 | G25: 1308267 | H25: -0.95 | I25: -1242853.65 | J25: =IF(A25="","",IF(ROW()>$Q$16,SUM(INDIRECT("I" & ROW()-$Q$16+1):I25)/SUM(INDIRECT("G" & ROW()-$Q$16+1):G25),"")) -> -0.7267760807 | L25: 262.4
A26: 2018-03-06T15:30:00 | C26: 256.25 | D26: 256.4 | E26: 255 | F26: 255.35 | G26: 1428994 | H26: -0.5 | I26: -714497 | J26: =IF(A26="","",IF(ROW()>$Q$16,SUM(INDIRECT("I" & ROW()-$Q$16+1):I26)/SUM(INDIRECT("G" & ROW()-$Q$16+1):G26),"")) -> -0.7150763665 | L26: 262.4
A27: 2018-03-07T09:15:00 | C27: 255.05 | D27: 255.05 | E27: 255.05 | F27: 255.05 | G27: 34634 | H27: 0 | I27: 0 | J27: =IF(A27="","",IF(ROW()>$Q$16,SUM(INDIRECT("I" & ROW()-$Q$16+1):I27)/SUM(INDIRECT("G" & ROW()-$Q$16+1):G27),"")) -> -0.4881684417 | L27: 262.4
A28: 2018-03-07T09:30:00 | C28: 255 | D28: 255 | E28: 251.35 | F28: 253.4 | G28: 2927639 | H28: 0.123 | I28: 360099.6 | J28: =IF(A28="","",IF(ROW()>$Q$16,SUM(INDIRECT("I" & ROW()-$Q$16+1):I28)/SUM(INDIRECT("G" & ROW()-$Q$16+1):G28),"")) -> 0.1215619222 | K28: BUY | L28: 253.4
A29: 2018-03-07T09:45:00 | C29: 253.3 | D29: 253.4 | E29: 251.75 | F29: 252.5 | G29: 978487 | H29: -0.091 | I29: -89042.32 | J29: =IF(A29="","",IF(ROW()>$Q$16,SUM(INDIRECT("I" & ROW()-$Q$16+1):I29)/SUM(INDIRECT("G" & ROW()-$Q$16+1):G29),"")) -> 0.06939286649 | L29: 253.4
A30: 2018-03-07T10:00:00 | C30: 252.5 | D30: 253.6 | E30: 252.3 | F30: 253.3 | G30: 971541 | H30: 0.538 | I30: 522689.06 | J30: =IF(A30="","",IF(ROW()>$Q$16,SUM(INDIRECT("I" & ROW()-$Q$16+1):I30)/SUM(INDIRECT("G" & ROW()-$Q$16+1):G30),"")) -> 0.2223797504 | L30: 253.4
A31: 2018-03-07T10:15:00 | C31: 253.35 | D31: 253.85 | E31: 251.8 | F31: 252.6 | G31: 1151547 | H31: -0.22 | I31: -253340.34 | J31: =IF(A31="","",IF(ROW()>$Q$16,SUM(INDIRECT("I" & ROW()-$Q$16+1):I31)/SUM(INDIRECT("G" & ROW()-$Q$16+1):G31),"")) -> 0.1268664888 | L31: 253.4
A32: 2018-03-07T10:30:00 | C32: 252.6 | D32: 253 | E32: 251.8 | F32: 252 | G32: 641143 | H32: -0.667 | I32: -427642.38 | J32: =IF(A32="","",IF(ROW()>$Q$16,SUM(INDIRECT("I" & ROW()-$Q$16+1):I32)/SUM(INDIRECT("G" & ROW()-$Q$16+1):G32),"")) -> -0.379866413 | K32: SELL | L32: 253.4 | M32: 252 | N32: -1.4
A33: 2018-03-07T10:45:00 | C33: 252 | D33: 252.35 | E33: 250.3 | F33: 250.85 | G33: 1262858 | H33: -0.463 | I33: -584703.25 | J33: =IF(A33="","",IF(ROW()>$Q$16,SUM(INDIRECT("I" & ROW()-$Q$16+1):I33)/SUM(INDIRECT("G" & ROW()-$Q$16+1):G33),"")) -> -0.5316938542 | L33: 253.4
A34: 2018-03-07T11:00:00 | C34: 250.8 | D34: 250.95 | E34: 250.05 | F34: 250.35 | G34: 1095172 | H34: -0.333 | I34: -364692.28 | J34: =IF(A34="","",IF(ROW()>$Q$16,SUM(INDIRECT("I" & ROW()-$Q$16+1):I34)/SUM(INDIRECT("G" & ROW()-$Q$16+1):G34),"")) -> -0.4026223288 | L34: 253.4
A35: 2018-03-07T11:15:00 | C35: 250.35 | D35: 250.6 | E35: 249.2 | F35: 249.2 | G35: 1237172 | H35: -1 | I35: -1237172 | J35: =IF(A35="","",IF(ROW()>$Q$16,SUM(INDIRECT("I" & ROW()-$Q$16+1):I35)/SUM(INDIRECT("G" & ROW()-$Q$16+1):G35),"")) -> -0.686804468 | L35: 253.4
A36: 2018-03-07T11:30:00 | C36: 249.2 | D36: 249.85 | E36: 248.4 | F36: 249.55 | G36: 1116091 | H36: 0.586 | I36: 654029.33 | J36: =IF(A36="","",IF(ROW()>$Q$16,SUM(INDIRECT("I" & ROW()-$Q$16+1):I36)/SUM(INDIRECT("G" & ROW()-$Q$16+1):G36),"")) -> -0.2478017417 | L36: 253.4
A37: 2018-03-07T11:45:00 | C37: 249.55 | D37: 249.65 | E37: 246.2 | F37: 246.9 | G37: 2336504 | H37: -0.594 | I37: -1387883.38 | J37: =IF(A37="","",IF(ROW()>$Q$16,SUM(INDIRECT("I" & ROW()-$Q$16+1):I37)/SUM(INDIRECT("G" & ROW()-$Q$16+1):G37),"")) -> -0.2125514432 | L37: 253.4
A38: 2018-03-07T12:00:00 | C38: 246.85 | D38: 248.75 | E38: 246.5 | F38: 248.75 | G38: 1440263 | H38: 1 | I38: 1440263 | J38: =IF(A38="","",IF(ROW()>$Q$16,SUM(INDIRECT("I" & ROW()-$Q$16+1):I38)/SUM(INDIRECT("G" & ROW()-$Q$16+1):G38),"")) -> 0.01386890428 | K38: BUY | L38: 248.75
A39: 2018-03-07T12:15:00 | C39: 248.7 | D39: 249.35 | E39: 248.05 | F39: 248.3 | G39: 1136919 | H39: -0.615 | I39: -699205.19 | J39: =IF(A39="","",IF(ROW()>$Q$16,SUM(INDIRECT("I" & ROW()-$Q$16+1):I39)/SUM(INDIRECT("G" & ROW()-$Q$16+1):G39),"")) -> 0.2875457806 | L39: 248.75
A40: 2018-03-07T12:30:00 | C40: 248.3 | D40: 249.2 | E40: 247.65 | F40: 247.95 | G40: 791802 | H40: -0.613 | I40: -485374.63 | J40: =IF(A40="","",IF(ROW()>$Q$16,SUM(INDIRECT("I" & ROW()-$Q$16+1):I40)/SUM(INDIRECT("G" & ROW()-$Q$16+1):G40),"")) -> -0.6141789403 | K40: SELL | L40: 248.75 | M40: 247.95 | N40: -0.8
A41: 2018-03-07T12:45:00 | C41: 247.85 | D41: 249.1 | E41: 247.65 | F41: 248.55 | G41: 686528 | H41: 0.241 | I41: 165453.25 | J41: =IF(A41="","",IF(ROW()>$Q$16,SUM(INDIRECT("I" & ROW()-$Q$16+1):I41)/SUM(INDIRECT("G" & ROW()-$Q$16+1):G41),"")) -> -0.2164072839 | L41: 248.75
A42: 2018-03-07T13:00:00 | C42: 248.6 | D42: 249 | E42: 247.15 | F42: 247.3 | G42: 835973 | H42: -0.838 | I42: -700545.37 | J42: =IF(A42="","",IF(ROW()>$Q$16,SUM(INDIRECT("I" & ROW()-$Q$16+1):I42)/SUM(INDIRECT("G" & ROW()-$Q$16+1):G42),"")) -> -0.3514560056 | L42: 248.75
A43: 2018-03-07T13:15:00 | C43: 247.3 | D43: 247.9 | E43: 246.8 | F43: 247.5 | G43: 688840 | H43: 0.273 | I43: 188053.32 | J43: =IF(A43="","",IF(ROW()>$Q$16,SUM(INDIRECT("I" & ROW()-$Q$16+1):I43)/SUM(INDIRECT("G" & ROW()-$Q$16+1):G43),"")) -> -0.3361015744 | L43: 248.75
A44: 2018-03-07T13:30:00 | C44: 247.45 | D44: 248.15 | E44: 246.85 | F44: 247.35 | G44: 519465 | H44: -0.231 | I44: -119996.42 | J44: =IF(A44="","",IF(ROW()>$Q$16,SUM(INDIRECT("I" & ROW()-$Q$16+1):I44)/SUM(INDIRECT("G" & ROW()-$Q$16+1):G44),"")) -> 0.05632427243 | K44: BUY | L44: 247.35
A45: 2018-03-07T13:45:00 | C45: 247.6 | D45: 247.75 | E45: 247 | F45: 247.4 | G45: 481765 | H45: 0.067 | I45: 32278.26 | J45: =IF(A45="","",IF(ROW()>$Q$16,SUM(INDIRECT("I" & ROW()-$Q$16+1):I45)/SUM(INDIRECT("G" & ROW()-$Q$16+1):G45),"")) -> -0.08761039921 | K45: SELL | L45: 247.35 | M45: 247.4 | N45: 0.05
A46: 2018-03-07T14:00:00 | C46: 247.4 | D46: 249.2 | E46: 247.3 | F46: 248.4 | G46: 1015427 | H46: 0.158 | I46: 160437.47 | J46: =IF(A46="","",IF(ROW()>$Q$16,SUM(INDIRECT("I" & ROW()-$Q$16+1):I46)/SUM(INDIRECT("G" & ROW()-$Q$16+1):G46),"")) -> 0.1287181136 | K46: BUY | L46: 248.4
A47: 2018-03-07T14:15:00 | C47: 248.45 | D47: 248.6 | E47: 246.2 | F47: 247.65 | G47: 1304616 | H47: 0.208 | I47: 271360.13 | J47: =IF(A47="","",IF(ROW()>$Q$16,SUM(INDIRECT("I" & ROW()-$Q$16+1):I47)/SUM(INDIRECT("G" & ROW()-$Q$16+1):G47),"")) -> 0.1861162056 | L47: 248.4
A48: 2018-03-07T14:30:00 | C48: 247.5 | D48: 248.4 | E48: 247.05 | F48: 248.3 | G48: 970099 | H48: 0.852 | I48: 826524.35 | J48: =IF(A48="","",IF(ROW()>$Q$16,SUM(INDIRECT("I" & ROW()-$Q$16+1):I48)/SUM(INDIRECT("G" & ROW()-$Q$16+1):G48),"")) -> 0.4826470481 | L48: 248.4
A49: 2018-03-07T14:45:00 | C49: 248.3 | D49: 248.4 | E49: 247.05 | F49: 247.45 | G49: 838719 | H49: -0.407 | I49: -341358.63 | J49: =IF(A49="","",IF(ROW()>$Q$16,SUM(INDIRECT("I" & ROW()-$Q$16+1):I49)/SUM(INDIRECT("G" & ROW()-$Q$16+1):G49),"")) -> 0.2682225188 | L49: 248.4
A50: 2018-03-07T15:00:00 | C50: 247.45 | D50: 248.15 | E50: 246.35 | F50: 247.5 | G50: 1540372 | H50: 0.278 | I50: 428223.42 | J50: =IF(A50="","",IF(ROW()>$Q$16,SUM(INDIRECT("I" & ROW()-$Q$16+1):I50)/SUM(INDIRECT("G" & ROW()-$Q$16+1):G50),"")) -> 0.03651175596 | L50: 248.4
A51: 2018-03-07T15:15:00 | C51: 247.55 | D51: 247.7 | E51: 246.25 | F51: 246.6 | G51: 1480370 | H51: -0.517 | I51: -765351.29 | J51: =IF(A51="","",IF(ROW()>$Q$16,SUM(INDIRECT("I" & ROW()-$Q$16+1):I51)/SUM(INDIRECT("G" & ROW()-$Q$16+1):G51),"")) -> -0.1116043244 | K51: SELL | L51: 248.4 | M51: 246.6 | N51: -1.8
A52: 2018-03-07T15:30:00 | C52: 246.7 | D52: 247.15 | E52: 246.05 | F52: 246.7 | G52: 3764754 | H52: 0.182 | I52: 685185.23 | J52: =IF(A52="","",IF(ROW()>$Q$16,SUM(INDIRECT("I" & ROW()-$Q$16+1):I52)/SUM(INDIRECT("G" & ROW()-$Q$16+1):G52),"")) -> -0.01528392084 | L52: 248.4
A53: 2018-03-08T09:15:00 | C53: 247 | D53: 247.5 | E53: 247 | F53: 247.5 | G53: 49448 | H53: 1 | I53: 49448 | J53: =IF(A53="","",IF(ROW()>$Q$16,SUM(INDIRECT("I" & ROW()-$Q$16+1):I53)/SUM(INDIRECT("G" & ROW()-$Q$16+1):G53),"")) -> 0.1926046995 | K53: BUY | L53: 247.5
A54: 2018-03-08T09:30:00 | C54: 247.55 | D54: 249.5 | E54: 247.1 | F54: 247.95 | G54: 1811625 | H54: -0.292 | I54: -528994.5 | J54: =IF(A54="","",IF(ROW()>$Q$16,SUM(INDIRECT("I" & ROW()-$Q$16+1):I54)/SUM(INDIRECT("G" & ROW()-$Q$16+1):G54),"")) -> -0.2576720526 | K54: SELL | L54: 247.5 | M54: 247.95 | N54: 0.45
A55: 2018-03-08T09:45:00 | C55: 248 | D55: 248.25 | E55: 245.2 | F55: 245.3 | G55: 1572236 | H55: -0.934 | I55: -1468468.42 | J55: =IF(A55="","",IF(ROW()>$Q$16,SUM(INDIRECT("I" & ROW()-$Q$16+1):I55)/SUM(INDIRECT("G" & ROW()-$Q$16+1):G55),"")) -> -0.5902910669 | L55: 247.5
A56: 2018-03-08T10:00:00 | C56: 245.3 | D56: 246.2 | E56: 244.3 | F56: 244.7 | G56: 1165475 | H56: -0.579 | I56: -674810.03 | J56: =IF(A56="","",IF(ROW()>$Q$16,SUM(INDIRECT("I" & ROW()-$Q$16+1):I56)/SUM(INDIRECT("G" & ROW()-$Q$16+1):G56),"")) -> -0.7828724252 | L56: 247.5
A57: 2018-03-08T10:15:00 | C57: 244.9 | D57: 246.5 | E57: 244.75 | F57: 245.95 | G57: 898935 | H57: 0.371 | I57: 333504.89 | J57: =IF(A57="","",IF(ROW()>$Q$16,SUM(INDIRECT("I" & ROW()-$Q$16+1):I57)/SUM(INDIRECT("G" & ROW()-$Q$16+1):G57),"")) -> -0.1653281761 | L57: 247.5
A58: 2018-03-08T10:30:00 | C58: 246 | D58: 246 | E58: 245 | F58: 245.3 | G58: 430967 | H58: -0.4 | I58: -172386.8 | J58: =IF(A58="","",IF(ROW()>$Q$16,SUM(INDIRECT("I" & ROW()-$Q$16+1):I58)/SUM(INDIRECT("G" & ROW()-$Q$16+1):G58),"")) -> 0.1211503479 | K58: BUY | L58: 245.3
A59: 2018-03-08T10:45:00 | C59: 245.35 | D59: 245.8 | E59: 245 | F59: 245.7 | G59: 815380 | H59: 0.75 | I59: 611535 | J59: =IF(A59="","",IF(ROW()>$Q$16,SUM(INDIRECT("I" & ROW()-$Q$16+1):I59)/SUM(INDIRECT("G" & ROW()-$Q$16+1):G59),"")) -> 0.3523482626 | L59: 245.3
A60: 2018-03-08T11:00:00 | C60: 245.7 | D60: 247.7 | E60: 245.7 | F60: 246.75 | G60: 1210204 | H60: 0.05 | I60: 60510.2 | J60: =IF(A60="","",IF(ROW()>$Q$16,SUM(INDIRECT("I" & ROW()-$Q$16+1):I60)/SUM(INDIRECT("G" & ROW()-$Q$16+1):G60),"")) -> 0.3317784896 | L60: 245.3
A61: 2018-03-08T11:15:00 | C61: 246.7 | D61: 248.7 | E61: 246.6 | F61: 247.85 | G61: 1171468 | H61: 0.19 | I61: 222578.92 | J61: =IF(A61="","",IF(ROW()>$Q$16,SUM(INDIRECT("I" & ROW()-$Q$16+1):I61)/SUM(INDIRECT("G" & ROW()-$Q$16+1):G61),"")) -> 0.1188615057 | L61: 245.3
A62: 2018-03-08T11:30:00 | C62: 247.85 | D62: 248.6 | E62: 247.15 | F62: 247.85 | G62: 910172 | H62: -0.034 | I62: -30945.85 | J62: =IF(A62="","",IF(ROW()>$Q$16,SUM(INDIRECT("I" & ROW()-$Q$16+1):I62)/SUM(INDIRECT("G" & ROW()-$Q$16+1):G62),"")) -> 0.09205869891 | L62: 245.3
A63: 2018-03-08T11:45:00 | C63: 247.8 | D63: 250.9 | E63: 247.75 | F63: 250.3 | G63: 1314147 | H63: 0.619 | I63: 813456.99 | J63: =IF(A63="","",IF(ROW()>$Q$16,SUM(INDIRECT("I" & ROW()-$Q$16+1):I63)/SUM(INDIRECT("G" & ROW()-$Q$16+1):G63),"")) -> 0.3517980739 | L63: 245.3
A64: 2018-03-08T12:00:00 | C64: 250.3 | D64: 251.65 | E64: 249.6 | F64: 251.15 | G64: 1644218 | H64: 0.512 | I64: 841839.62 | J64: =IF(A64="","",IF(ROW()>$Q$16,SUM(INDIRECT("I" & ROW()-$Q$16+1):I64)/SUM(INDIRECT("G" & ROW()-$Q$16+1):G64),"")) -> 0.5595308929 | L64: 245.3
A65: 2018-03-08T12:15:00 | C65: 251.2 | D65: 251.4 | E65: 249.65 | F65: 250.95 | G65: 1308153 | H65: 0.486 | I65: 635762.36 | J65: =IF(A65="","",IF(ROW()>$Q$16,SUM(INDIRECT("I" & ROW()-$Q$16+1):I65)/SUM(INDIRECT("G" & ROW()-$Q$16+1):G65),"")) -> 0.5004797771 | L65: 245.3
A66: 2018-03-08T12:30:00 | C66: 250.85 | D66: 251.95 | E66: 250.75 | F66: 251.15 | G66: 994351 | H66: -0.333 | I66: -331118.88 | J66: =IF(A66="","",IF(ROW()>$Q$16,SUM(INDIRECT("I" & ROW()-$Q$16+1):I66)/SUM(INDIRECT("G" & ROW()-$Q$16+1):G66),"")) -> 0.132309642 | L66: 245.3
A67: 2018-03-08T12:45:00 | C67: 251.1 | D67: 253.3 | E67: 251.1 | F67: 252.45 | G67: 1531932 | H67: =IF(A67="","",ROUND(IFERROR(((F67-E67)-(D67-F67))/(D67-E67),0),3)) -> 0.227 | I67: =IF(A67="","",ROUND(G67*H67,2)) -> 347748.56 | J67: =IF(A67="","",IF(ROW()>$Q$16,SUM(INDIRECT("I" & ROW()-$Q$16+1):I67)/SUM(INDIRECT("G" & ROW()-$Q$16+1):G67),"")) -> 0.006582667104 | L67: =IF(A67="","",IF(L66="BuyPrice","",IF(K67="BUY",F67,L66))) -> 245.3 | M67: =IF(OR(M66="SellPrice",L67=""),"",IF(K67="SELL",F67,"")) ->  | N67: =IF(AND(L67<>"",M67<>""),M67-L67,"") -> 
A68: 2018-03-08T13:00:00 | C68: 252.45 | D68: 253 | E68: 251.65 | F68: 252.1 | G68: 1008403 | H68: -0.333 | I68: -335798.2 | J68: =IF(A68="","",IF(ROW()>$Q$16,SUM(INDIRECT("I" & ROW()-$Q$16+1):I68)/SUM(INDIRECT("G" & ROW()-$Q$16+1):G68),"")) -> 0.0047042457 | K68: =IF(AND(J68>0,J67<0),"BUY",IF(AND(J68<0,J67>0),"SELL","")) ->  | L68: 245.3
A69: 2018-03-08T13:15:00 | C69: 252.2 | D69: 252.8 | E69: 250.5 | F69: 250.75 | G69: 1192228 | H69: -0.783 | I69: -933514.52 | J69: =IF(A69="","",IF(ROW()>$Q$16,SUM(INDIRECT("I" & ROW()-$Q$16+1):I69)/SUM(INDIRECT("G" & ROW()-$Q$16+1):G69),"")) -> -0.576794892 | K69: SELL | L69: 245.3 | M69: 250.75 | N69: 5.45
A70: 2018-03-08T13:30:00 | C70: 250.65 | D70: 252.25 | E70: 250.65 | F70: 251.6 | G70: 836535 | H70: 0.187 | I70: 156432.05 | J70: =IF(A70="","",IF(ROW()>$Q$16,SUM(INDIRECT("I" & ROW()-$Q$16+1):I70)/SUM(INDIRECT("G" & ROW()-$Q$16+1):G70),"")) -> -0.3830326509 | L70: 245.3
A71: 2018-03-08T13:45:00 | C71: 251.6 | D71: 252.5 | E71: 251.2 | F71: 252.05 | G71: 526992 | H71: 0.308 | I71: 162313.54 | J71: =IF(A71="","",IF(ROW()>$Q$16,SUM(INDIRECT("I" & ROW()-$Q$16+1):I71)/SUM(INDIRECT("G" & ROW()-$Q$16+1):G71),"")) -> 0.233765514 | K71: BUY | L71: 252.05
A72: 2018-03-08T14:00:00 | C72: 252 | D72: 252 | E72: 251.3 | F72: 251.6 | G72: 509671 | H72: -0.143 | I72: -72882.95 | J72: =IF(A72="","",IF(ROW()>$Q$16,SUM(INDIRECT("I" & ROW()-$Q$16+1):I72)/SUM(INDIRECT("G" & ROW()-$Q$16+1):G72),"")) -> 0.08626775529 | L72: 252.05
A73: 2018-03-08T14:15:00 | C73: 251.6 | D73: 252 | E73: 251.05 | F73: 251.8 | G73: 560714 | H73: 0.579 | I73: 324653.41 | J73: =IF(A73="","",IF(ROW()>$Q$16,SUM(INDIRECT("I" & ROW()-$Q$16+1):I73)/SUM(INDIRECT("G" & ROW()-$Q$16+1):G73),"")) -> 0.2352148619 | L73: 252.05
A74: 2018-03-08T14:30:00 | C74: 251.8 | D74: 253.95 | E74: 251.75 | F74: 252.8 | G74: 1309227 | H74: -0.045 | I74: -58915.22 | J74: =IF(A74="","",IF(ROW()>$Q$16,SUM(INDIRECT("I" & ROW()-$Q$16+1):I74)/SUM(INDIRECT("G" & ROW()-$Q$16+1):G74),"")) -> 0.1421104677 | L74: 252.05
A75: 2018-03-08T14:45:00 | C75: 253 | D75: 255.5 | E75: 252.9 | F75: 254.85 | G75: 2484048 | H75: 0.5 | I75: 1242024 | J75: =IF(A75="","",IF(ROW()>$Q$16,SUM(INDIRECT("I" & ROW()-$Q$16+1):I75)/SUM(INDIRECT("G" & ROW()-$Q$16+1):G75),"")) -> 0.3118963903 | L75: 252.05
A76: 2018-03-08T15:00:00 | C76: 254.8 | D76: 256.6 | E76: 253.9 | F76: 256.35 | G76: 1992626 | H76: 0.815 | I76: 1623990.19 | J76: =IF(A76="","",IF(ROW()>$Q$16,SUM(INDIRECT("I" & ROW()-$Q$16+1):I76)/SUM(INDIRECT("G" & ROW()-$Q$16+1):G76),"")) -> 0.6402106095 | L76: 252.05
A77: 2018-03-08T15:15:00 | C77: 256.15 | D77: 257.6 | E77: 255.85 | F77: 256.1 | G77: 2813375 | H77: -0.714 | I77: -2008749.75 | J77: =IF(A77="","",IF(ROW()>$Q$16,SUM(INDIRECT("I" & ROW()-$Q$16+1):I77)/SUM(INDIRECT("G" & ROW()-$Q$16+1):G77),"")) -> -0.0800581523 | K77: SELL | L77: 252.05 | M77: 256.1 | N77: 4.05
A78: 2018-03-08T15:30:00 | C78: 256.15 | D78: 257.65 | E78: 256.1 | F78: 256.65 | G78: 3064398 | H78: -0.29 | I78: -888675.42 | J78: =IF(A78="","",IF(ROW()>$Q$16,SUM(INDIRECT("I" & ROW()-$Q$16+1):I78)/SUM(INDIRECT("G" & ROW()-$Q$16+1):G78),"")) -> -0.4929460818 | L78: 252.05
A79: 2.992263096e+17 | H79: 0 | I79: 0 | J79: =IF(A79="","",IF(ROW()>$Q$16,SUM(INDIRECT("I" & ROW()-$Q$16+1):I79)/SUM(INDIRECT("G" & ROW()-$Q$16+1):G79),"")) -> -0.29 | L79: 252.05
A80: 2018-03-09T09:30:00 | C80: 257.25 | D80: 257.25 | E80: 252.55 | F80: 254.15 | G80: 2735843 | H80: -0.319 | I80: -872733.92 | J80: =IF(A80="","",IF(ROW()>$Q$16,SUM(INDIRECT("I" & ROW()-$Q$16+1):I80)/SUM(INDIRECT("G" & ROW()-$Q$16+1):G80),"")) -> -0.3190000011 | L80: 252.05
A81: 2018-03-09T09:45:00 | C81: 253.95 | D81: 254.4 | E81: 253 | F81: 254 | G81: 1310331 | H81: 0.429 | I81: 562132 | J81: =IF(A81="","",IF(ROW()>$Q$16,SUM(INDIRECT("I" & ROW()-$Q$16+1):I81)/SUM(INDIRECT("G" & ROW()-$Q$16+1):G81),"")) -> -0.07676435072 | L81: 252.05
A82: 2018-03-09T10:00:00 | C82: 254 | D82: 254.85 | E82: 253.9 | F82: 254.45 | G82: 1046632 | H82: 0.158 | I82: 165367.86 | J82: =IF(A82="","",IF(ROW()>$Q$16,SUM(INDIRECT("I" & ROW()-$Q$16+1):I82)/SUM(INDIRECT("G" & ROW()-$Q$16+1):G82),"")) -> 0.3086598559 | K82: BUY | L82: 254.45
A83: 2018-03-09T10:15:00 | C83: 254.5 | D83: 255 | E83: 253.6 | F83: 254.25 | G83: 1069273 | H83: -0.071 | I83: -75918.38 | J83: =IF(A83="","",IF(ROW()>$Q$16,SUM(INDIRECT("I" & ROW()-$Q$16+1):I83)/SUM(INDIRECT("G" & ROW()-$Q$16+1):G83),"")) -> 0.04227480912 | L83: 254.45
A84: 2018-03-09T10:30:00 | C84: 254.2 | D84: 254.5 | E84: 253.7 | F84: 254.45 | G84: 433825 | H84: 0.875 | I84: 379596.88 | J84: =IF(A84="","",IF(ROW()>$Q$16,SUM(INDIRECT("I" & ROW()-$Q$16+1):I84)/SUM(INDIRECT("G" & ROW()-$Q$16+1):G84),"")) -> 0.2020350636 | L84: 254.45
A85: 2018-03-09T10:45:00 | C85: 254.5 | D85: 254.75 | E85: 253.5 | F85: 253.8 | G85: 693297 | H85: -0.52 | I85: -360514.44 | J85: =IF(A85="","",IF(ROW()>$Q$16,SUM(INDIRECT("I" & ROW()-$Q$16+1):I85)/SUM(INDIRECT("G" & ROW()-$Q$16+1):G85),"")) -> 0.0169302347 | L85: 254.45
A86: 2018-03-09T11:00:00 | C86: 253.8 | D86: 254.45 | E86: 253.3 | F86: 254 | G86: 569792 | H86: 0.217 | I86: 123644.86 | J86: =IF(A86="","",IF(ROW()>$Q$16,SUM(INDIRECT("I" & ROW()-$Q$16+1):I86)/SUM(INDIRECT("G" & ROW()-$Q$16+1):G86),"")) -> -0.1875319791 | K86: SELL | L86: 254.45 | M86: 254 | N86: -0.45
A87: 2018-03-09T11:15:00 | C87: 254 | D87: 254.5 | E87: 253.9 | F87: 254.25 | G87: 410846 | H87: 0.167 | I87: 68611.28 | J87: =IF(A87="","",IF(ROW()>$Q$16,SUM(INDIRECT("I" & ROW()-$Q$16+1):I87)/SUM(INDIRECT("G" & ROW()-$Q$16+1):G87),"")) -> 0.1960521008 | K87: BUY | L87: 254.25
A88: 2018-03-09T11:30:00 | C88: 254.3 | D88: 254.45 | E88: 253.65 | F88: 253.7 | G88: 424155 | H88: -0.875 | I88: -371135.63 | J88: =IF(A88="","",IF(ROW()>$Q$16,SUM(INDIRECT("I" & ROW()-$Q$16+1):I88)/SUM(INDIRECT("G" & ROW()-$Q$16+1):G88),"")) -> -0.3623041769 | K88: SELL | L88: 254.25 | M88: 253.7 | N88: -0.55
A89: 2018-03-09T11:45:00 | C89: 253.7 | D89: 253.75 | E89: 251.75 | F89: 252.55 | G89: 1540116 | H89: -0.2 | I89: -308023.2 | J89: =IF(A89="","",IF(ROW()>$Q$16,SUM(INDIRECT("I" & ROW()-$Q$16+1):I89)/SUM(INDIRECT("G" & ROW()-$Q$16+1):G89),"")) -> -0.3457561762 | L89: 254.25
A90: 2018-03-09T12:00:00 | C90: 252.6 | D90: 253.55 | E90: 252.1 | F90: 253.05 | G90: 551155 | H90: 0.31 | I90: 170858.05 | J90: =IF(A90="","",IF(ROW()>$Q$16,SUM(INDIRECT("I" & ROW()-$Q$16+1):I90)/SUM(INDIRECT("G" & ROW()-$Q$16+1):G90),"")) -> -0.06558937125 | L90: 254.25
A91: 2018-03-09T12:15:00 | C91: 253.05 | D91: 253.75 | E91: 252.85 | F91: 252.9 | G91: 422148 | H91: -0.889 | I91: -375289.57 | J91: =IF(A91="","",IF(ROW()>$Q$16,SUM(INDIRECT("I" & ROW()-$Q$16+1):I91)/SUM(INDIRECT("G" & ROW()-$Q$16+1):G91),"")) -> -0.2100389293 | L91: 254.25
A92: 2018-03-09T12:30:00 | C92: 252.85 | D92: 253.2 | E92: 252.5 | F92: 253.2 | G92: 346665 | H92: 1 | I92: 346665 | J92: =IF(A92="","",IF(ROW()>$Q$16,SUM(INDIRECT("I" & ROW()-$Q$16+1):I92)/SUM(INDIRECT("G" & ROW()-$Q$16+1):G92),"")) -> -0.03723216179 | L92: 254.25
A93: 2018-03-09T12:45:00 | C93: 253.1 | D93: 254.35 | E93: 253.1 | F93: 253.85 | G93: 822155 | H93: 0.2 | I93: 164431 | J93: =IF(A93="","",IF(ROW()>$Q$16,SUM(INDIRECT("I" & ROW()-$Q$16+1):I93)/SUM(INDIRECT("G" & ROW()-$Q$16+1):G93),"")) -> 0.4372752006 | K93: BUY | L93: 253.85
A94: 2018-03-09T13:00:00 | C94: 253.85 | D94: 254 | E94: 253 | F94: 253.2 | G94: 398760 | H94: -0.6 | I94: -239256 | J94: =IF(A94="","",IF(ROW()>$Q$16,SUM(INDIRECT("I" & ROW()-$Q$16+1):I94)/SUM(INDIRECT("G" & ROW()-$Q$16+1):G94),"")) -> -0.06128600271 | K94: SELL | L94: 253.85 | M94: 253.2 | N94: -0.65
A95: 2018-03-09T13:15:00 | C95: 253.25 | D95: 254.45 | E95: 253.15 | F95: 254.25 | G95: 384990 | H95: 0.692 | I95: 266413.08 | J95: =IF(A95="","",IF(ROW()>$Q$16,SUM(INDIRECT("I" & ROW()-$Q$16+1):I95)/SUM(INDIRECT("G" & ROW()-$Q$16+1):G95),"")) -> 0.03465018182 | K95: BUY | L95: 254.25
A96: 2018-03-09T13:30:00 | C96: 254.2 | D96: 255.9 | E96: 253.85 | F96: 254.9 | G96: 1060131 | H96: 0.024 | I96: 25443.14 | J96: =IF(A96="","",IF(ROW()>$Q$16,SUM(INDIRECT("I" & ROW()-$Q$16+1):I96)/SUM(INDIRECT("G" & ROW()-$Q$16+1):G96),"")) -> 0.2019597113 | L96: 254.25
A97: 2018-03-09T13:45:00 | C97: 254.9 | D97: 255.4 | E97: 254.4 | F97: 254.8 | G97: 644557 | H97: -0.2 | I97: -128911.4 | J97: =IF(A97="","",IF(ROW()>$Q$16,SUM(INDIRECT("I" & ROW()-$Q$16+1):I97)/SUM(INDIRECT("G" & ROW()-$Q$16+1):G97),"")) -> -0.06069630337 | K97: SELL | L97: 254.25 | M97: 254.8 | N97: 0.55
A98: 2018-03-09T14:00:00 | C98: 254.8 | D98: 255 | E98: 253.8 | F98: 254.15 | G98: 638915 | H98: -0.417 | I98: -266427.56 | J98: =IF(A98="","",IF(ROW()>$Q$16,SUM(INDIRECT("I" & ROW()-$Q$16+1):I98)/SUM(INDIRECT("G" & ROW()-$Q$16+1):G98),"")) -> -0.30802305 | L98: 254.25
A99: 2018-03-09T14:15:00 | C99: 254.15 | D99: 254.5 | E99: 253.3 | F99: 253.75 | G99: 583561 | H99: -0.25 | I99: -145890.25 | J99: =IF(A99="","",IF(ROW()>$Q$16,SUM(INDIRECT("I" & ROW()-$Q$16+1):I99)/SUM(INDIRECT("G" & ROW()-$Q$16+1):G99),"")) -> -0.3372809037 | L99: 254.25
A100: 2018-03-09T14:30:00 | C100: 253.75 | D100: 255.2 | E100: 253.35 | F100: 254.85 | G100: 838260 | H100: 0.622 | I100: 521397.72 | J100: =IF(A100="","",IF(ROW()>$Q$16,SUM(INDIRECT("I" & ROW()-$Q$16+1):I100)/SUM(INDIRECT("G" & ROW()-$Q$16+1):G100),"")) -> 0.2641031958 | K100: BUY | L100: 254.85
A101: 2018-03-09T14:45:00 | C101: 254.85 | D101: 255.5 | E101: 253.6 | F101: 253.9 | G101: 899019 | H101: -0.684 | I101: -614929 | J101: =IF(A101="","",IF(ROW()>$Q$16,SUM(INDIRECT("I" & ROW()-$Q$16+1):I101)/SUM(INDIRECT("G" & ROW()-$Q$16+1):G101),"")) -> -0.05383780038 | K101: SELL | L101: 254.85 | M101: 253.9 | N101: -0.95
A102: 2018-03-09T15:00:00 | C102: 253.95 | D102: 254.25 | E102: 253.25 | F102: 253.95 | G102: 1202569 | H102: 0.4 | I102: 481027.6 | J102: =IF(A102="","",IF(ROW()>$Q$16,SUM(INDIRECT("I" & ROW()-$Q$16+1):I102)/SUM(INDIRECT("G" & ROW()-$Q$16+1):G102),"")) -> -0.06371439121 | L102: 254.85
A103: 2018-03-09T15:15:00 | C103: 254.05 | D103: 254.1 | E103: 252.6 | F103: 252.95 | G103: 1211747 | H103: -0.533 | I103: -645861.15 | J103: =IF(A103="","",IF(ROW()>$Q$16,SUM(INDIRECT("I" & ROW()-$Q$16+1):I103)/SUM(INDIRECT("G" & ROW()-$Q$16+1):G103),"")) -> -0.06827339503 | L103: 254.85
A104: 2018-03-09T15:30:00 | C104: 252.9 | D104: 254 | E104: 252.9 | F104: 253.65 | G104: 1248359 | H104: 0.364 | I104: 454402.68 | J104: =IF(A104="","",IF(ROW()>$Q$16,SUM(INDIRECT("I" & ROW()-$Q$16+1):I104)/SUM(INDIRECT("G" & ROW()-$Q$16+1):G104),"")) -> -0.07782529289 | L104: 254.85
A105: 2018-03-12T09:15:00 | C105: 254.1 | D105: 254.35 | E105: 254.1 | F105: 254.35 | G105: 25640 | H105: 1 | I105: 25640 | J105: =IF(A105="","",IF(ROW()>$Q$16,SUM(INDIRECT("I" & ROW()-$Q$16+1):I105)/SUM(INDIRECT("G" & ROW()-$Q$16+1):G105),"")) -> 0.3767998876 | K105: BUY | L105: 254.35
A106: 2018-03-12T09:30:00 | C106: 254.45 | D106: 255 | E106: 250 | F106: 250.35 | G106: 2239505 | H106: -0.86 | I106: -1925974.3 | J106: =IF(A106="","",IF(ROW()>$Q$16,SUM(INDIRECT("I" & ROW()-$Q$16+1):I106)/SUM(INDIRECT("G" & ROW()-$Q$16+1):G106),"")) -> -0.8389459836 | K106: SELL | L106: 254.35 | M106: 250.35 | N106: -4
A107: 2018-03-12T09:45:00 | C107: 250.35 | D107: 250.7 | E107: 249.05 | F107: 250 | G107: 1374165 | H107: 0.152 | I107: 208873.08 | J107: =IF(A107="","",IF(ROW()>$Q$16,SUM(INDIRECT("I" & ROW()-$Q$16+1):I107)/SUM(INDIRECT("G" & ROW()-$Q$16+1):G107),"")) -> -0.4751682417 | L107: 254.35
A108: 2018-03-12T10:00:00 | C108: 250.05 | D108: 251.3 | E108: 249.8 | F108: 250.2 | G108: 1015725 | H108: -0.467 | I108: -474343.58 | J108: =IF(A108="","",IF(ROW()>$Q$16,SUM(INDIRECT("I" & ROW()-$Q$16+1):I108)/SUM(INDIRECT("G" & ROW()-$Q$16+1):G108),"")) -> -0.1110806355 | L108: 254.35
A109: 2018-03-12T10:15:00 | C109: 250.25 | D109: 251.45 | E109: 250 | F109: 250.2 | G109: 900316 | H109: -0.724 | I109: -651828.78 | J109: =IF(A109="","",IF(ROW()>$Q$16,SUM(INDIRECT("I" & ROW()-$Q$16+1):I109)/SUM(INDIRECT("G" & ROW()-$Q$16+1):G109),"")) -> -0.5877600532 | L109: 254.35
A110: 2018-03-12T10:30:00 | C110: 250.25 | D110: 250.8 | E110: 249.5 | F110: 249.85 | G110: 737020 | H110: -0.462 | I110: -340503.24 | J110: =IF(A110="","",IF(ROW()>$Q$16,SUM(INDIRECT("I" & ROW()-$Q$16+1):I110)/SUM(INDIRECT("G" & ROW()-$Q$16+1):G110),"")) -> -0.6060649861 | L110: 254.35
A111: 2018-03-12T10:45:00 | C111: 249.95 | D111: 250.5 | E111: 249.15 | F111: 250.2 | G111: 1055210 | H111: 0.556 | I111: 586696.76 | J111: =IF(A111="","",IF(ROW()>$Q$16,SUM(INDIRECT("I" & ROW()-$Q$16+1):I111)/SUM(INDIRECT("G" & ROW()-$Q$16+1):G111),"")) -> 0.137367146 | K111: BUY | L111: 250.2
A112: 2018-03-12T11:00:00 | C112: 250.25 | D112: 251.1 | E112: 248.5 | F112: 249.45 | G112: 1403151 | H112: -0.269 | I112: -377447.62 | J112: =IF(A112="","",IF(ROW()>$Q$16,SUM(INDIRECT("I" & ROW()-$Q$16+1):I112)/SUM(INDIRECT("G" & ROW()-$Q$16+1):G112),"")) -> 0.08511733631 | L112: 250.2
A113: 2018-03-12T11:15:00 | C113: 249.55 | D113: 250 | E113: 248.9 | F113: 248.95 | G113: 697922 | H113: -0.909 | I113: -634411.1 | J113: =IF(A113="","",IF(ROW()>$Q$16,SUM(INDIRECT("I" & ROW()-$Q$16+1):I113)/SUM(INDIRECT("G" & ROW()-$Q$16+1):G113),"")) -> -0.4815914154 | K113: SELL | L113: 250.2 | M113: 248.95 | N113: -1.25
A114: 2018-03-12T11:30:00 | C114: 249.05 | D114: 249.4 | E114: 248.1 | F114: 248.4 | G114: 969274 | H114: -0.538 | I114: -521469.41 | J114: =IF(A114="","",IF(ROW()>$Q$16,SUM(INDIRECT("I" & ROW()-$Q$16+1):I114)/SUM(INDIRECT("G" & ROW()-$Q$16+1):G114),"")) -> -0.6933081113 | L114: 250.2
A115: 2018-03-12T11:45:00 | C115: 248.35 | D115: 249.25 | E115: 247.75 | F115: 249.05 | G115: 1562645 | H115: 0.733 | I115: 1145418.79 | J115: =IF(A115="","",IF(ROW()>$Q$16,SUM(INDIRECT("I" & ROW()-$Q$16+1):I115)/SUM(INDIRECT("G" & ROW()-$Q$16+1):G115),"")) -> 0.2464333891 | K115: BUY | L115: 249.05
A116: 2018-03-12T12:00:00 | C116: 249.05 | D116: 249.1 | E116: 248.5 | F116: 248.9 | G116: 412030 | H116: 0.333 | I116: 137205.99 | J116: =IF(A116="","",IF(ROW()>$Q$16,SUM(INDIRECT("I" & ROW()-$Q$16+1):I116)/SUM(INDIRECT("G" & ROW()-$Q$16+1):G116),"")) -> 0.6495371542 | L116: 249.05
A117: 2018-03-12T12:15:00 | C117: 248.9 | D117: 249 | E117: 248.35 | F117: 248.65 | G117: 405949 | H117: -0.077 | I117: -31258.07 | J117: =IF(A117="","",IF(ROW()>$Q$16,SUM(INDIRECT("I" & ROW()-$Q$16+1):I117)/SUM(INDIRECT("G" & ROW()-$Q$16+1):G117),"")) -> 0.1295240098 | L117: 249.05
A118: 2018-03-12T12:30:00 | C118: 248.6 | D118: 248.65 | E118: 247.25 | F118: 247.85 | G118: 784930 | H118: -0.143 | I118: -112244.99 | J118: =IF(A118="","",IF(ROW()>$Q$16,SUM(INDIRECT("I" & ROW()-$Q$16+1):I118)/SUM(INDIRECT("G" & ROW()-$Q$16+1):G118),"")) -> -0.1205017974 | K118: SELL | L118: 249.05 | M118: 247.85 | N118: -1.2
A119: 2018-03-12T12:45:00 | C119: 247.9 | D119: 249.2 | E119: 247.7 | F119: 248.85 | G119: 660633 | H119: 0.533 | I119: 352117.39 | J119: =IF(A119="","",IF(ROW()>$Q$16,SUM(INDIRECT("I" & ROW()-$Q$16+1):I119)/SUM(INDIRECT("G" & ROW()-$Q$16+1):G119),"")) -> 0.1659370086 | K119: BUY | L119: 248.85
A120: 2018-03-12T13:00:00 | C120: 248.85 | D120: 249.75 | E120: 248.4 | F120: 249.05 | G120: 569958 | H120: -0.037 | I120: -21088.45 | J120: =IF(A120="","",IF(ROW()>$Q$16,SUM(INDIRECT("I" & ROW()-$Q$16+1):I120)/SUM(INDIRECT("G" & ROW()-$Q$16+1):G120),"")) -> 0.2689999683 | L120: 248.85
A121: 2018-03-12T13:15:00 | C121: 249.05 | D121: 249.6 | E121: 248.7 | F121: 249.2 | G121: 543055 | H121: 0.111 | I121: 60279.11 | J121: =IF(A121="","",IF(ROW()>$Q$16,SUM(INDIRECT("I" & ROW()-$Q$16+1):I121)/SUM(INDIRECT("G" & ROW()-$Q$16+1):G121),"")) -> 0.03521132278 | L121: 248.85
A122: 2018-03-12T13:30:00 | C122: 249.05 | D122: 249.3 | E122: 248.55 | F122: 248.9 | G122: 416493 | H122: -0.067 | I122: -27905.03 | J122: =IF(A122="","",IF(ROW()>$Q$16,SUM(INDIRECT("I" & ROW()-$Q$16+1):I122)/SUM(INDIRECT("G" & ROW()-$Q$16+1):G122),"")) -> 0.03373888539 | L122: 248.85
A123: 2018-03-12T13:45:00 | C123: 248.85 | D123: 250 | E123: 248.8 | F123: 249.25 | G123: 937564 | H123: -0.25 | I123: -234391 | J123: =IF(A123="","",IF(ROW()>$Q$16,SUM(INDIRECT("I" & ROW()-$Q$16+1):I123)/SUM(INDIRECT("G" & ROW()-$Q$16+1):G123),"")) -> -0.1937112175 | K123: SELL | L123: 248.85 | M123: 249.25 | N123: 0.4
A124: 2018-03-12T14:00:00 | C124: 249.25 | D124: 249.85 | E124: 248.85 | F124: 249.7 | G124: 497048 | H124: 0.7 | I124: 347933.6 | J124: =IF(A124="","",IF(ROW()>$Q$16,SUM(INDIRECT("I" & ROW()-$Q$16+1):I124)/SUM(INDIRECT("G" & ROW()-$Q$16+1):G124),"")) -> 0.07914516259 | K124: BUY | L124: 249.7
A125: 2018-03-12T14:15:00 | C125: 249.8 | D125: 249.8 | E125: 248.85 | F125: 249.45 | G125: 477743 | H125: 0.263 | I125: 125646.41 | J125: =IF(A125="","",IF(ROW()>$Q$16,SUM(INDIRECT("I" & ROW()-$Q$16+1):I125)/SUM(INDIRECT("G" & ROW()-$Q$16+1):G125),"")) -> 0.4858272286 | L125: 249.7
A126: 2018-03-12T14:30:00 | C126: 249.45 | D126: 249.45 | E126: 248.85 | F126: 249.05 | G126: 486001 | H126: -0.333 | I126: -161838.33 | J126: =IF(A126="","",IF(ROW()>$Q$16,SUM(INDIRECT("I" & ROW()-$Q$16+1):I126)/SUM(INDIRECT("G" & ROW()-$Q$16+1):G126),"")) -> -0.03755345818 | K126: SELL | L126: 249.7 | M126: 249.05 | N126: -0.65
A127: 2018-03-12T14:45:00 | C127: 249 | D127: 249.85 | E127: 248.9 | F127: 249.7 | G127: 611825 | H127: 0.684 | I127: 418488.3 | J127: =IF(A127="","",IF(ROW()>$Q$16,SUM(INDIRECT("I" & ROW()-$Q$16+1):I127)/SUM(INDIRECT("G" & ROW()-$Q$16+1):G127),"")) -> 0.2337801892 | K127: BUY | L127: 249.7
A128: 2018-03-12T15:00:00 | C128: 249.7 | D128: 250.95 | E128: 249.4 | F128: 250.55 | G128: 2021747 | H128: 0.484 | I128: 978525.55 | J128: =IF(A128="","",IF(ROW()>$Q$16,SUM(INDIRECT("I" & ROW()-$Q$16+1):I128)/SUM(INDIRECT("G" & ROW()-$Q$16+1):G128),"")) -> 0.5304635112 | L128: 249.7
A129: 2018-03-12T15:15:00 | C129: 250.65 | D129: 254.65 | E129: 250.5 | F129: 253.65 | G129: 2792838 | H129: 0.518 | I129: 1446690.08 | J129: =IF(A129="","",IF(ROW()>$Q$16,SUM(INDIRECT("I" & ROW()-$Q$16+1):I129)/SUM(INDIRECT("G" & ROW()-$Q$16+1):G129),"")) -> 0.5037226739 | L129: 249.7
A130: 2018-03-12T15:30:00 | C130: 253.65 | D130: 254 | E130: 252.75 | F130: 253.55 | G130: 1730362 | H130: 0.28 | I130: 484501.36 | J130: =IF(A130="","",IF(ROW()>$Q$16,SUM(INDIRECT("I" & ROW()-$Q$16+1):I130)/SUM(INDIRECT("G" & ROW()-$Q$16+1):G130),"")) -> 0.4269524761 | L130: 249.7
A131: 2018-03-13T09:15:00 | C131: 251.3 | D131: 251.3 | E131: 251.3 | F131: 251.3 | G131: 27410 | H131: =IF(A131="","",ROUND(IFERROR(((F131-E131)-(D131-F131))/(D131-E131),0),3)) -> 0 | I131: =IF(A131="","",ROUND(G131*H131,2)) -> 0 | J131: =IF(A131="","",IF(ROW()>$Q$16,SUM(INDIRECT("I" & ROW()-$Q$16+1):I131)/SUM(INDIRECT("G" & ROW()-$Q$16+1):G131),"")) -> 0.275633791 | L131: =IF(A131="","",IF(L130="BuyPrice","",IF(K131="BUY",F131,L130))) -> 249.7 | M131: =IF(OR(M130="SellPrice",L131=""),"",IF(K131="SELL",F131,"")) ->  | N131: =IF(AND(L131<>"",M131<>""),M131-L131,"") -> 
A132: 2018-03-13T09:30:00 | C132: 251 | D132: 256.95 | E132: 250.4 | F132: 255.25 | G132: 3715544 | H132: 0.481 | I132: 1787176.66 | J132: =IF(A132="","",IF(ROW()>$Q$16,SUM(INDIRECT("I" & ROW()-$Q$16+1):I132)/SUM(INDIRECT("G" & ROW()-$Q$16+1):G132),"")) -> 0.4774775912 | K132: =IF(AND(J132>0,J131<0),"BUY",IF(AND(J132<0,J131>0),"SELL","")) ->  | L132: 249.7
A133: 2018-03-13T09:45:00 | C133: 255.4 | D133: 256.65 | E133: 255.05 | F133: 256 | G133: 1743297 | H133: 0.188 | I133: 327739.84 | J133: =IF(A133="","",IF(ROW()>$Q$16,SUM(INDIRECT("I" & ROW()-$Q$16+1):I133)/SUM(INDIRECT("G" & ROW()-$Q$16+1):G133),"")) -> 0.3874295844 | L133: 249.7
A134: 2018-03-13T10:00:00 | C134: 256.05 | D134: 259.85 | E134: 255.85 | F134: 259.15 | G134: 2620584 | H134: 0.65 | I134: 1703379.6 | J134: =IF(A134="","",IF(ROW()>$Q$16,SUM(INDIRECT("I" & ROW()-$Q$16+1):I134)/SUM(INDIRECT("G" & ROW()-$Q$16+1):G134),"")) -> 0.465438778 | L134: 249.7
A135: 2018-03-13T10:15:00 | C135: 259.35 | D135: 259.75 | E135: 258 | F135: 259.3 | G135: 1267084 | H135: 0.486 | I135: 615802.82 | J135: =IF(A135="","",IF(ROW()>$Q$16,SUM(INDIRECT("I" & ROW()-$Q$16+1):I135)/SUM(INDIRECT("G" & ROW()-$Q$16+1):G135),"")) -> 0.5965484758 | L135: 249.7
A136: 2018-03-13T10:30:00 | C136: 259.35 | D136: 260.15 | E136: 258.6 | F136: 258.95 | G136: 1385384 | H136: -0.548 | I136: -759190.43 | J136: =IF(A136="","",IF(ROW()>$Q$16,SUM(INDIRECT("I" & ROW()-$Q$16+1):I136)/SUM(INDIRECT("G" & ROW()-$Q$16+1):G136),"")) -> -0.05405818656 | K136: SELL | L136: 249.7 | M136: 258.95 | N136: 9.25
A137: 2018-03-13T10:45:00 | C137: 259 | D137: 259 | E137: 257.6 | F137: 257.75 | G137: 862709 | H137: -0.786 | I137: -678089.27 | J137: =IF(A137="","",IF(ROW()>$Q$16,SUM(INDIRECT("I" & ROW()-$Q$16+1):I137)/SUM(INDIRECT("G" & ROW()-$Q$16+1):G137),"")) -> -0.6393328479 | L137: 249.7
A138: 2018-03-13T11:00:00 | C138: 257.7 | D138: 258.75 | E138: 257.05 | F138: 257.7 | G138: 995817 | H138: -0.235 | I138: -234017 | J138: =IF(A138="","",IF(ROW()>$Q$16,SUM(INDIRECT("I" & ROW()-$Q$16+1):I138)/SUM(INDIRECT("G" & ROW()-$Q$16+1):G138),"")) -> -0.490768636 | L138: 249.7
A139: 2018-03-13T11:15:00 | C139: 257.7 | D139: 258.3 | E139: 257.05 | F139: 257.35 | G139: 552182 | H139: -0.52 | I139: -287134.64 | J139: =IF(A139="","",IF(ROW()>$Q$16,SUM(INDIRECT("I" & ROW()-$Q$16+1):I139)/SUM(INDIRECT("G" & ROW()-$Q$16+1):G139),"")) -> -0.3366614836 | L139: 249.7
A140: 2018-03-13T11:30:00 | C140: 257.4 | D140: 258.5 | E140: 257.2 | F140: 258 | G140: 606961 | H140: 0.231 | I140: 140207.99 | J140: =IF(A140="","",IF(ROW()>$Q$16,SUM(INDIRECT("I" & ROW()-$Q$16+1):I140)/SUM(INDIRECT("G" & ROW()-$Q$16+1):G140),"")) -> -0.1267545506 | L140: 249.7
A141: 2018-03-13T11:45:00 | C141: 258.05 | D141: 259.35 | E141: 257.4 | F141: 259.25 | G141: 871321 | H141: 0.897 | I141: 781574.94 | J141: =IF(A141="","",IF(ROW()>$Q$16,SUM(INDIRECT("I" & ROW()-$Q$16+1):I141)/SUM(INDIRECT("G" & ROW()-$Q$16+1):G141),"")) -> 0.6235501278 | K141: BUY | L141: 259.25
A142: 2018-03-13T12:00:00 | C142: 259.3 | D142: 260 | E142: 258.7 | F142: 259.25 | G142: 1032283 | H142: -0.154 | I142: -158971.58 | J142: =IF(A142="","",IF(ROW()>$Q$16,SUM(INDIRECT("I" & ROW()-$Q$16+1):I142)/SUM(INDIRECT("G" & ROW()-$Q$16+1):G142),"")) -> 0.3270655872 | L142: 259.25
A143: 2018-03-13T12:15:00 | C143: 259.3 | D143: 260.45 | E143: 258.65 | F143: 260.35 | G143: 1192074 | H143: 0.889 | I143: 1059753.79 | J143: =IF(A143="","",IF(ROW()>$Q$16,SUM(INDIRECT("I" & ROW()-$Q$16+1):I143)/SUM(INDIRECT("G" & ROW()-$Q$16+1):G143),"")) -> 0.4049629668 | L143: 259.25
A144: 2018-03-13T12:30:00 | C144: 260.25 | D144: 260.45 | E144: 259 | F144: 259.4 | G144: 1019724 | H144: -0.448 | I144: -456836.35 | J144: =IF(A144="","",IF(ROW()>$Q$16,SUM(INDIRECT("I" & ROW()-$Q$16+1):I144)/SUM(INDIRECT("G" & ROW()-$Q$16+1):G144),"")) -> 0.2725915477 | L144: 259.25
A145: 2018-03-13T12:45:00 | C145: 259.4 | D145: 261.5 | E145: 259.4 | F145: 260.65 | G145: 1642410 | H145: 0.19 | I145: 312057.9 | J145: =IF(A145="","",IF(ROW()>$Q$16,SUM(INDIRECT("I" & ROW()-$Q$16+1):I145)/SUM(INDIRECT("G" & ROW()-$Q$16+1):G145),"")) -> -0.05438435856 | K145: SELL | L145: 259.25 | M145: 260.65 | N145: 1.4
A146: 2018-03-13T13:00:00 | C146: 260.7 | D146: 262.4 | E146: 260.65 | F146: 261.95 | G146: 1541894 | H146: 0.486 | I146: 749360.48 | J146: =IF(A146="","",IF(ROW()>$Q$16,SUM(INDIRECT("I" & ROW()-$Q$16+1):I146)/SUM(INDIRECT("G" & ROW()-$Q$16+1):G146),"")) -> 0.3333282187 | K146: BUY | L146: 261.95
A147: 2018-03-13T13:15:00 | C147: 261.9 | D147: 261.95 | E147: 260.1 | F147: 260.7 | G147: 1193949 | H147: -0.351 | I147: -419076.1 | J147: =IF(A147="","",IF(ROW()>$Q$16,SUM(INDIRECT("I" & ROW()-$Q$16+1):I147)/SUM(INDIRECT("G" & ROW()-$Q$16+1):G147),"")) -> 0.1207249027 | L147: 261.95
A148: 2018-03-13T13:30:00 | C148: 260.6 | D148: 260.75 | E148: 259.2 | F148: 260 | G148: 1039964 | H148: 0.032 | I148: 33278.85 | J148: =IF(A148="","",IF(ROW()>$Q$16,SUM(INDIRECT("I" & ROW()-$Q$16+1):I148)/SUM(INDIRECT("G" & ROW()-$Q$16+1):G148),"")) -> -0.1727002126 | K148: SELL | L148: 261.95 | M148: 260 | N148: -1.95
A149: 2018-03-13T13:45:00 | C149: 260 | D149: 260.1 | E149: 259 | F149: 259.25 | G149: 907449 | H149: -0.545 | I149: -494559.71 | J149: =IF(A149="","",IF(ROW()>$Q$16,SUM(INDIRECT("I" & ROW()-$Q$16+1):I149)/SUM(INDIRECT("G" & ROW()-$Q$16+1):G149),"")) -> -0.2368685328 | L149: 261.95
A150: 2018-03-13T14:00:00 | C150: 259.3 | D150: 259.3 | E150: 253.25 | F150: 254.25 | G150: 3496976 | H150: -0.669 | I150: -2339476.94 | J150: =IF(A150="","",IF(ROW()>$Q$16,SUM(INDIRECT("I" & ROW()-$Q$16+1):I150)/SUM(INDIRECT("G" & ROW()-$Q$16+1):G150),"")) -> -0.6434521305 | L150: 261.95
A151: 2018-03-13T14:15:00 | C151: 254.25 | D151: 255.3 | E151: 252.25 | F151: 253.75 | G151: 2138134 | H151: -0.016 | I151: -34210.14 | J151: =IF(A151="","",IF(ROW()>$Q$16,SUM(INDIRECT("I" & ROW()-$Q$16+1):I151)/SUM(INDIRECT("G" & ROW()-$Q$16+1):G151),"")) -> -0.4212317204 | L151: 261.95
A152: 2018-03-13T14:30:00 | C152: 253.7 | D152: 255.55 | E152: 253.6 | F152: 254.4 | G152: 1205704 | H152: -0.179 | I152: -215821.02 | J152: =IF(A152="","",IF(ROW()>$Q$16,SUM(INDIRECT("I" & ROW()-$Q$16+1):I152)/SUM(INDIRECT("G" & ROW()-$Q$16+1):G152),"")) -> -0.07477370614 | L152: 261.95
A153: 2018-03-13T14:45:00 | C153: 254.35 | D153: 254.6 | E153: 253.3 | F153: 253.85 | G153: 1123830 | H153: -0.154 | I153: -173069.82 | J153: =IF(A153="","",IF(ROW()>$Q$16,SUM(INDIRECT("I" & ROW()-$Q$16+1):I153)/SUM(INDIRECT("G" & ROW()-$Q$16+1):G153),"")) -> -0.1669393278 | L153: 261.95
A154: 2018-03-13T15:00:00 | C154: 253.8 | D154: 257.05 | E154: 253.6 | F154: 255.75 | G154: 2174085 | H154: 0.246 | I154: 534824.91 | J154: =IF(A154="","",IF(ROW()>$Q$16,SUM(INDIRECT("I" & ROW()-$Q$16+1):I154)/SUM(INDIRECT("G" & ROW()-$Q$16+1):G154),"")) -> 0.10969206 | K154: BUY | L154: 255.75
A155: 2018-03-13T15:15:00 | C155: 255.65 | D155: 256.35 | E155: 253.45 | F155: 253.6 | G155: 1838645 | H155: -0.897 | I155: -1649264.57 | J155: =IF(A155="","",IF(ROW()>$Q$16,SUM(INDIRECT("I" & ROW()-$Q$16+1):I155)/SUM(INDIRECT("G" & ROW()-$Q$16+1):G155),"")) -> -0.2777260518 | K155: SELL | L155: 255.75 | M155: 253.6 | N155: -2.15
A156: 2018-03-13T15:30:00 | C156: 253.5 | D156: 254.7 | E156: 253.25 | F156: 254.1 | G156: 1441125 | H156: 0.172 | I156: 247873.5 | J156: =IF(A156="","",IF(ROW()>$Q$16,SUM(INDIRECT("I" & ROW()-$Q$16+1):I156)/SUM(INDIRECT("G" & ROW()-$Q$16+1):G156),"")) -> -0.4272833369 | L156: 255.75
A157: 2018-03-14T09:15:00 | C157: 252.5 | D157: 252.5 | E157: 252.15 | F157: 252.15 | G157: 48126 | H157: -1 | I157: -48126 | J157: =IF(A157="","",IF(ROW()>$Q$16,SUM(INDIRECT("I" & ROW()-$Q$16+1):I157)/SUM(INDIRECT("G" & ROW()-$Q$16+1):G157),"")) -> 0.134126148 | K157: BUY | L157: 252.15
A158: 2018-03-14T09:30:00 | C158: 251.9 | D158: 251.9 | E158: 250 | F158: 250.6 | G158: 2321829 | H158: -0.368 | I158: -854433.07 | J158: =IF(A158="","",IF(ROW()>$Q$16,SUM(INDIRECT("I" & ROW()-$Q$16+1):I158)/SUM(INDIRECT("G" & ROW()-$Q$16+1):G158),"")) -> -0.3808338428 | K158: SELL | L158: 252.15 | M158: 250.6 | N158: -1.55
A159: 2018-03-14T09:45:00 | C159: 250.55 | D159: 251.55 | E159: 250.35 | F159: 251.4 | G159: 1514865 | H159: 0.75 | I159: 1136148.75 | J159: =IF(A159="","",IF(ROW()>$Q$16,SUM(INDIRECT("I" & ROW()-$Q$16+1):I159)/SUM(INDIRECT("G" & ROW()-$Q$16+1):G159),"")) -> 0.07342667411 | K159: BUY | L159: 251.4
A160: 2018-03-14T10:00:00 | C160: 251.35 | D160: 252.95 | E160: 251.25 | F160: 251.65 | G160: 1274267 | H160: -0.529 | I160: -674087.24 | J160: =IF(A160="","",IF(ROW()>$Q$16,SUM(INDIRECT("I" & ROW()-$Q$16+1):I160)/SUM(INDIRECT("G" & ROW()-$Q$16+1):G160),"")) -> 0.1656649847 | L160: 251.4
A161: 2018-03-14T10:15:00 | C161: 251.55 | D161: 251.75 | E161: 250.8 | F161: 250.85 | G161: 640829 | H161: -0.895 | I161: -573541.96 | J161: =IF(A161="","",IF(ROW()>$Q$16,SUM(INDIRECT("I" & ROW()-$Q$16+1):I161)/SUM(INDIRECT("G" & ROW()-$Q$16+1):G161),"")) -> -0.6514708401 | K161: SELL | L161: 251.4 | M161: 250.85 | N161: -0.55
A162: 2018-03-14T10:30:00 | C162: 250.9 | D162: 252.2 | E162: 250.75 | F162: 251.8 | G162: 563633 | H162: 0.448 | I162: 252507.58 | J162: =IF(A162="","",IF(ROW()>$Q$16,SUM(INDIRECT("I" & ROW()-$Q$16+1):I162)/SUM(INDIRECT("G" & ROW()-$Q$16+1):G162),"")) -> -0.2665375745 | L162: 251.4
A163: 2018-03-14T10:45:00 | C163: 251.8 | D163: 252.25 | E163: 250.8 | F163: 252.2 | G163: 537107 | H163: 0.931 | I163: 500046.62 | J163: =IF(A163="","",IF(ROW()>$Q$16,SUM(INDIRECT("I" & ROW()-$Q$16+1):I163)/SUM(INDIRECT("G" & ROW()-$Q$16+1):G163),"")) -> 0.6836802515 | K163: BUY | L163: 252.2
A164: 2018-03-14T11:00:00 | C164: 252.1 | D164: 252.75 | E164: 251.7 | F164: 251.75 | G164: 629687 | H164: -0.905 | I164: -569866.74 | J164: =IF(A164="","",IF(ROW()>$Q$16,SUM(INDIRECT("I" & ROW()-$Q$16+1):I164)/SUM(INDIRECT("G" & ROW()-$Q$16+1):G164),"")) -> -0.05983928611 | K164: SELL | L164: 252.2 | M164: 251.75 | N164: -0.45
A165: 2018-03-14T11:15:00 | C165: 251.75 | D165: 251.9 | E165: 251.05 | F165: 251.7 | G165: 437835 | H165: 0.529 | I165: 231614.72 | J165: =IF(A165="","",IF(ROW()>$Q$16,SUM(INDIRECT("I" & ROW()-$Q$16+1):I165)/SUM(INDIRECT("G" & ROW()-$Q$16+1):G165),"")) -> -0.3168571889 | L165: 252.2
A166: 2018-03-14T11:30:00 | C166: 251.8 | D166: 251.9 | E166: 250.85 | F166: 250.85 | G166: 432239 | H166: -1 | I166: -432239 | J166: =IF(A166="","",IF(ROW()>$Q$16,SUM(INDIRECT("I" & ROW()-$Q$16+1):I166)/SUM(INDIRECT("G" & ROW()-$Q$16+1):G166),"")) -> -0.2305830079 | L166: 252.2
A167: 2018-03-14T11:45:00 | C167: 250.9 | D167: 251.6 | E167: 250.8 | F167: 251.6 | G167: 748129 | H167: 1 | I167: 748129 | J167: =IF(A167="","",IF(ROW()>$Q$16,SUM(INDIRECT("I" & ROW()-$Q$16+1):I167)/SUM(INDIRECT("G" & ROW()-$Q$16+1):G167),"")) -> 0.2676199287 | K167: BUY | L167: 251.6
A168: 2018-03-14T12:00:00 | C168: 251.5 | D168: 252 | E168: 251.2 | F168: 252 | G168: 549789 | H168: 1 | I168: 549789 | J168: =IF(A168="","",IF(ROW()>$Q$16,SUM(INDIRECT("I" & ROW()-$Q$16+1):I168)/SUM(INDIRECT("G" & ROW()-$Q$16+1):G168),"")) -> 1 | L168: 251.6
A169: 2018-03-14T12:15:00 | C169: 252 | D169: 252.65 | E169: 251.65 | F169: 251.75 | G169: 643835 | H169: -0.8 | I169: -515068 | J169: =IF(A169="","",IF(ROW()>$Q$16,SUM(INDIRECT("I" & ROW()-$Q$16+1):I169)/SUM(INDIRECT("G" & ROW()-$Q$16+1):G169),"")) -> 0.02908872476 | L169: 251.6
A170: 2018-03-14T12:30:00 | C170: 251.85 | D170: 252.4 | E170: 251.35 | F170: 252.1 | G170: 519797 | H170: 0.429 | I170: 222992.91 | J170: =IF(A170="","",IF(ROW()>$Q$16,SUM(INDIRECT("I" & ROW()-$Q$16+1):I170)/SUM(INDIRECT("G" & ROW()-$Q$16+1):G170),"")) -> -0.2510029717 | K170: SELL | L170: 251.6 | M170: 252.1 | N170: 0.5
A171: 2018-03-14T12:45:00 | C171: 252.2 | D171: 253.8 | E171: 252.1 | F171: 253.2 | G171: 1331351 | H171: 0.294 | I171: 391417.19 | J171: =IF(A171="","",IF(ROW()>$Q$16,SUM(INDIRECT("I" & ROW()-$Q$16+1):I171)/SUM(INDIRECT("G" & ROW()-$Q$16+1):G171),"")) -> 0.3319076054 | K171: BUY | L171: 253.2
A172: 2018-03-14T13:00:00 | C172: 253.2 | D172: 254.7 | E172: 253.1 | F172: 254 | G172: 1038359 | H172: 0.125 | I172: 129794.88 | J172: =IF(A172="","",IF(ROW()>$Q$16,SUM(INDIRECT("I" & ROW()-$Q$16+1):I172)/SUM(INDIRECT("G" & ROW()-$Q$16+1):G172),"")) -> 0.2199476181 | L172: 253.2
A173: 2018-03-14T13:15:00 | C173: 254 | D173: 255.2 | E173: 253.65 | F173: 254.6 | G173: 1432183 | H173: 0.226 | I173: 323673.36 | J173: =IF(A173="","",IF(ROW()>$Q$16,SUM(INDIRECT("I" & ROW()-$Q$16+1):I173)/SUM(INDIRECT("G" & ROW()-$Q$16+1):G173),"")) -> 0.1835501036 | L173: 253.2
A174: 2018-03-14T13:30:00 | C174: 254.6 | D174: 255.95 | E174: 254.4 | F174: 255.35 | G174: 1426730 | H174: 0.226 | I174: 322440.98 | J174: =IF(A174="","",IF(ROW()>$Q$16,SUM(INDIRECT("I" & ROW()-$Q$16+1):I174)/SUM(INDIRECT("G" & ROW()-$Q$16+1):G174),"")) -> 0.2260000007 | L174: 253.2
A175: 2018-03-14T13:45:00 | C175: 255.35 | D175: 256.8 | E175: 255.2 | F175: 255.25 | G175: 1687441 | H175: -0.937 | I175: -1581132.22 | J175: =IF(A175="","",IF(ROW()>$Q$16,SUM(INDIRECT("I" & ROW()-$Q$16+1):I175)/SUM(INDIRECT("G" & ROW()-$Q$16+1):G175),"")) -> -0.4041817999 | K175: SELL | L175: 253.2 | M175: 255.25 | N175: 2.05
A176: 2018-03-14T14:00:00 | C176: 255.2 | D176: 255.95 | E176: 254.3 | F176: 254.75 | G176: 845679 | H176: -0.455 | I176: -384783.95 | J176: =IF(A176="","",IF(ROW()>$Q$16,SUM(INDIRECT("I" & ROW()-$Q$16+1):I176)/SUM(INDIRECT("G" & ROW()-$Q$16+1):G176),"")) -> -0.7760848953 | L176: 253.2
A177: 2018-03-14T14:15:00 | C177: 254.7 | D177: 255.55 | E177: 254.5 | F177: 254.6 | G177: 584422 | H177: -0.81 | I177: -473381.82 | J177: =IF(A177="","",IF(ROW()>$Q$16,SUM(INDIRECT("I" & ROW()-$Q$16+1):I177)/SUM(INDIRECT("G" & ROW()-$Q$16+1):G177),"")) -> -0.6000735403 | L177: 253.2
A178: 2018-03-14T14:30:00 | C178: 254.55 | D178: 255.2 | E178: 254.1 | F178: 254.3 | G178: 666952 | H178: -0.636 | I178: -424181.47 | J178: =IF(A178="","",IF(ROW()>$Q$16,SUM(INDIRECT("I" & ROW()-$Q$16+1):I178)/SUM(INDIRECT("G" & ROW()-$Q$16+1):G178),"")) -> -0.7172622174 | L178: 253.2
A179: 2018-03-14T14:45:00 | C179: 254.3 | D179: 256.5 | E179: 254.3 | F179: 256.4 | G179: 1121222 | H179: 0.909 | I179: 1019190.8 | J179: =IF(A179="","",IF(ROW()>$Q$16,SUM(INDIRECT("I" & ROW()-$Q$16+1):I179)/SUM(INDIRECT("G" & ROW()-$Q$16+1):G179),"")) -> 0.3327468859 | K179: BUY | L179: 256.4
A180: 2018-03-14T15:00:00 | C180: 256.5 | D180: 257.7 | E180: 255.5 | F180: 255.7 | G180: 1708681 | H180: -0.818 | I180: -1397701.06 | J180: =IF(A180="","",IF(ROW()>$Q$16,SUM(INDIRECT("I" & ROW()-$Q$16+1):I180)/SUM(INDIRECT("G" & ROW()-$Q$16+1):G180),"")) -> -0.133753793 | K180: SELL | L180: 256.4 | M180: 255.7 | N180: -0.7
A181: 2018-03-14T15:15:00 | C181: 255.8 | D181: 257.15 | E181: 255.8 | F181: 257.05 | G181: 1186427 | H181: 0.852 | I181: 1010835.8 | J181: =IF(A181="","",IF(ROW()>$Q$16,SUM(INDIRECT("I" & ROW()-$Q$16+1):I181)/SUM(INDIRECT("G" & ROW()-$Q$16+1):G181),"")) -> -0.1336272291 | L181: 256.4
A182: 2018-03-14T15:30:00 | C182: 257.1 | D182: 257.8 | E182: 257 | F182: 257.8 | G182: 1570471 | H182: 1 | I182: 1570471 | J182: =IF(A182="","",IF(ROW()>$Q$16,SUM(INDIRECT("I" & ROW()-$Q$16+1):I182)/SUM(INDIRECT("G" & ROW()-$Q$16+1):G182),"")) -> 0.9363084162 | K182: BUY | L182: 257.8
A183: 8.992263096e+17 | H183: 0 | I183: 0 | J183: =IF(A183="","",IF(ROW()>$Q$16,SUM(INDIRECT("I" & ROW()-$Q$16+1):I183)/SUM(INDIRECT("G" & ROW()-$Q$16+1):G183),"")) -> 1 | L183: 257.8
A184: 2018-03-15T09:30:00 | C184: 257.6 | D184: 258 | E184: 255.05 | F184: 257.4 | G184: 1942175 | H184: 0.593 | I184: 1151709.78 | J184: =IF(A184="","",IF(ROW()>$Q$16,SUM(INDIRECT("I" & ROW()-$Q$16+1):I184)/SUM(INDIRECT("G" & ROW()-$Q$16+1):G184),"")) -> 0.5930000026 | L184: 257.8
A185: 2018-03-15T09:45:00 | C185: 257.4 | D185: 257.55 | E185: 256.05 | F185: 256.35 | G185: 727476 | H185: -0.6 | I185: -436485.6 | J185: =IF(A185="","",IF(ROW()>$Q$16,SUM(INDIRECT("I" & ROW()-$Q$16+1):I185)/SUM(INDIRECT("G" & ROW()-$Q$16+1):G185),"")) -> 0.2679092436 | L185: 257.8
A186: 2018-03-15T10:00:00 | C186: 256.2 | D186: 257 | E186: 255.6 | F186: 256.8 | G186: 1175528 | H186: 0.714 | I186: 839326.99 | J186: =IF(A186="","",IF(ROW()>$Q$16,SUM(INDIRECT("I" & ROW()-$Q$16+1):I186)/SUM(INDIRECT("G" & ROW()-$Q$16+1):G186),"")) -> 0.2116870958 | L186: 257.8
A187: 2018-03-15T10:15:00 | C187: 256.8 | D187: 258.7 | E187: 256.8 | F187: 257.35 | G187: 1073164 | H187: -0.421 | I187: -451802.04 | J187: =IF(A187="","",IF(ROW()>$Q$16,SUM(INDIRECT("I" & ROW()-$Q$16+1):I187)/SUM(INDIRECT("G" & ROW()-$Q$16+1):G187),"")) -> 0.1723334943 | L187: 257.8
A188: 2018-03-15T10:30:00 | C188: 257.4 | D188: 258.2 | E188: 256.95 | F188: 257.25 | G188: 562002 | H188: -0.52 | I188: -292241.04 | J188: =IF(A188="","",IF(ROW()>$Q$16,SUM(INDIRECT("I" & ROW()-$Q$16+1):I188)/SUM(INDIRECT("G" & ROW()-$Q$16+1):G188),"")) -> -0.4550260218 | K188: SELL | L188: 257.8 | M188: 257.25 | N188: -0.55
A189: 2018-03-15T10:45:00 | C189: 257.25 | D189: 257.3 | E189: 256.4 | F189: 256.4 | G189: 471817 | H189: -1 | I189: -471817 | J189: =IF(A189="","",IF(ROW()>$Q$16,SUM(INDIRECT("I" & ROW()-$Q$16+1):I189)/SUM(INDIRECT("G" & ROW()-$Q$16+1):G189),"")) -> -0.7390636465 | L189: 257.8
A190: 2018-03-15T11:00:00 | C190: 256.45 | D190: 256.85 | E190: 256 | F190: 256.3 | G190: 467756 | H190: -0.294 | I190: -137520.26 | J190: =IF(A190="","",IF(ROW()>$Q$16,SUM(INDIRECT("I" & ROW()-$Q$16+1):I190)/SUM(INDIRECT("G" & ROW()-$Q$16+1):G190),"")) -> -0.6485257239 | L190: 257.8
A191: 2018-03-15T11:15:00 | C191: 256.3 | D191: 256.4 | E191: 255.25 | F191: 255.25 | G191: 683366 | H191: -1 | I191: -683366 | J191: =IF(A191="","",IF(ROW()>$Q$16,SUM(INDIRECT("I" & ROW()-$Q$16+1):I191)/SUM(INDIRECT("G" & ROW()-$Q$16+1):G191),"")) -> -0.7131183836 | L191: 257.8
A192: 2018-03-15T11:30:00 | C192: 255.35 | D192: 255.85 | E192: 254.55 | F192: 254.95 | G192: 660027 | H192: -0.385 | I192: -254110.4 | J192: =IF(A192="","",IF(ROW()>$Q$16,SUM(INDIRECT("I" & ROW()-$Q$16+1):I192)/SUM(INDIRECT("G" & ROW()-$Q$16+1):G192),"")) -> -0.6978422546 | L192: 257.8
A193: 2018-03-15T11:45:00 | C193: 254.95 | D193: 255.8 | E193: 254.85 | F193: 255.5 | G193: 386564 | H193: 0.368 | I193: 142255.55 | J193: =IF(A193="","",IF(ROW()>$Q$16,SUM(INDIRECT("I" & ROW()-$Q$16+1):I193)/SUM(INDIRECT("G" & ROW()-$Q$16+1):G193),"")) -> -0.1068754174 | L193: 257.8
A194: 2018-03-15T12:00:00 | C194: 255.6 | D194: 256.5 | E194: 255.5 | F194: 256.1 | G194: 547776 | H194: 0.2 | I194: 109555.2 | J194: =IF(A194="","",IF(ROW()>$Q$16,SUM(INDIRECT("I" & ROW()-$Q$16+1):I194)/SUM(INDIRECT("G" & ROW()-$Q$16+1):G194),"")) -> 0.2695065501 | K194: BUY | L194: 256.1
A195: 2018-03-15T12:15:00 | C195: 256.1 | D195: 256.2 | E195: 255.55 | F195: 255.7 | G195: 274626 | H195: =IF(A195="","",ROUND(IFERROR(((F195-E195)-(D195-F195))/(D195-E195),0),3)) -> -0.538 | I195: =IF(A195="","",ROUND(G195*H195,2)) -> -147748.79 | J195: =IF(A195="","",IF(ROW()>$Q$16,SUM(INDIRECT("I" & ROW()-$Q$16+1):I195)/SUM(INDIRECT("G" & ROW()-$Q$16+1):G195),"")) -> -0.04644150914 | K195: SELL | L195: =IF(A195="","",IF(L194="BuyPrice","",IF(K195="BUY",F195,L194))) -> 256.1 | M195: =IF(OR(M194="SellPrice",L195=""),"",IF(K195="SELL",F195,"")) -> 255.7 | N195: =IF(AND(L195<>"",M195<>""),M195-L195,"") -> -0.4
A196: 2018-03-15T12:30:00 | C196: 255.65 | D196: 256.45 | E196: 255.6 | F196: 256.4 | G196: 329221 | H196: 0.882 | I196: 290372.92 | J196: =IF(A196="","",IF(ROW()>$Q$16,SUM(INDIRECT("I" & ROW()-$Q$16+1):I196)/SUM(INDIRECT("G" & ROW()-$Q$16+1):G196),"")) -> 0.2361924958 | K196: =IF(AND(J196>0,J195<0),"BUY",IF(AND(J196<0,J195>0),"SELL","")) -> BUY | L196: 256.4
A197: 2018-03-15T12:45:00 | C197: 256.3 | D197: 256.35 | E197: 255.5 | F197: 255.75 | G197: 361892 | H197: -0.412 | I197: -149099.5 | J197: =IF(A197="","",IF(ROW()>$Q$16,SUM(INDIRECT("I" & ROW()-$Q$16+1):I197)/SUM(INDIRECT("G" & ROW()-$Q$16+1):G197),"")) -> 0.2044143577 | L197: 256.4
A198: 2018-03-15T13:00:00 | C198: 255.75 | D198: 255.75 | E198: 255.1 | F198: 255.5 | G198: 335876 | H198: 0.231 | I198: 77587.36 | J198: =IF(A198="","",IF(ROW()>$Q$16,SUM(INDIRECT("I" & ROW()-$Q$16+1):I198)/SUM(INDIRECT("G" & ROW()-$Q$16+1):G198),"")) -> -0.1024869871 | K198: SELL | L198: 256.4 | M198: 255.5 | N198: -0.9
A199: 2018-03-15T13:15:00 | C199: 255.4 | D199: 256.3 | E199: 255.35 | F199: 256.3 | G199: 374199 | H199: 1 | I199: 374199 | J199: =IF(A199="","",IF(ROW()>$Q$16,SUM(INDIRECT("I" & ROW()-$Q$16+1):I199)/SUM(INDIRECT("G" & ROW()-$Q$16+1):G199),"")) -> 0.6362516072 | K199: BUY | L199: 256.3
A200: 2018-03-15T13:30:00 | C200: 256.15 | D200: 256.75 | E200: 256 | F200: 256.1 | G200: 522387 | H200: -0.733 | I200: -382909.67 | J200: =IF(A200="","",IF(ROW()>$Q$16,SUM(INDIRECT("I" & ROW()-$Q$16+1):I200)/SUM(INDIRECT("G" & ROW()-$Q$16+1):G200),"")) -> -0.009715375881 | K200: SELL | L200: 256.3 | M200: 256.1 | N200: -0.2
... 6027 more rows

Sheet Sheet1 (hidden)
A1: 1
A2: 2
A3: 3
A4: 5
A5: 10
A6: 15
A7: 30
A8: 60
